{"text_format":"1","workbook":"xlsx","n_sheets":20,"sheets":["PROBA_AME","Hoja1","Buscardatos","DATOS_POBLADOS","tablas exposicion","DATOS GENERALES","PROBABILIDAD_DAÑO","VOLCANICA","INUNDACION","HURACANES","CLIMATICO","DESLIZAMIENTOS","SISMOS","VIENTOS","OTRAS#1","OTRAS#2","OTRAS#3","RESULTADOS_FINALES","DATOS#1","TABLA_INDICE_SISMICIDAD_EJEMPLO"],"not_rendered":{"charts":0,"images":10,"macros":1,"external_links":0,"defined_names":47,"comments":0,"pivot_tables":0},"unopened":[],"bounds":{"document_bytes":16777216,"sheet_cells":100000,"rows_first":2000,"rows_last":500,"rows_between":2000,"halvings":0,"cell_chars":16384,"cell_head_chars":4096},"cells_cut":0,"cells_raw":0,"read":"whole","date_system":"1900"}

{"sheet":"PROBA_AME","index":0,"n_rows":57,"n_cols":6,"rows_kept":57,"cut":false,"hidden":true,"merged":[[51,0,51,2],[23,7,23,12],[25,0,25,2],[26,0,26,2],[33,0,33,2],[34,0,34,2],[41,0,41,2],[42,0,42,2],[46,5,46,18],[50,0,50,2],[18,0,18,2],[1,0,1,2],[2,0,2,2],[9,0,9,2],[10,0,10,2],[17,0,17,2]]}
[]
["CRITERIOS PARA DETERMINAR LA PROBABILIDAD DEL NIVEL DE INTENSIDAD DE ZONA SISMICA"]
["TABLA No. 1\nPONDERACIÓN DEL FACTOR DE INTENSIDAD EN SISMOS"]
["INTENSIDAD","CRITERIO","NIVEL"]
[1,"> El sitio se encuentra ubicado dentro de los indices de sismicidad; 2.1, 2.2 ; según la NSE2-10 de AGIES. \n>SE ADJUNTA EL MAPA DEL INDICE DE SISMICIDAD POR MUNICIPIO CON LISTADO DE COMUNIDADES POR MUNICIPIO)","BAJO"]
[2,"> El sitio se encuentra ubicado dentro de los indices de sismicidad; 3.1, 3.2 ; según la NSE2-10 de AGIES. \n>SE ADJUNTA EL MAPA DEL INDICE DE SISMICIDAD POR MUNICIPIO CON LISTADO DE COMUNIDADES POR MUNICIPIO)","MEDIO"]
[3,"> El sitio se encuentra ubicado dentro de los indices de sismicidad; 4.1; según la NSE2-10 de AGIES. \n>SE ADJUNTA EL MAPA DEL INDICE DE SISMICIDAD POR MUNICIPIO CON LISTADO DE COMUNIDADES POR MUNICIPIO)","ALTO"]
[4,"> El sitio se encuentra ubicado dentro de los indices de sismicidad; 4.2, 4.3; según la NSE2-10 de AGIES.\n>SE ADJUNTA EL MAPA DEL INDICE DE SISMICIDAD POR MUNICIPIO CON LISTADO DE COMUNIDADES POR MUNICIPIO)","MUY ALTO"]
[]
["CRITERIOS PARA DETERMINAR LA PROBABILIDAD DEL NIVEL DE INTENSIDAD DE AMENAZA VOLCANICA"]
["TABLA No. 2\nPONDERACIÓN DEL FACTOR DE INTENSIDAD EN VULCANISMO"]
["INTENSIDAD","CRITERIO","NIVEL"]
[1,"> Distancia del sitio del proyecto en relacion a un edificio volcanico mayor de 50 Kms.  \n> Eventualmente caida de ceniza  (medio centimetro o menos de lamina de espesor)\n>","BAJO"]
[2,"> distancia del sitio del proyecto en relacion a un edificio volcanico de aproximadamente 30 Kms.\n> Eventualmente caida de TEFRA arena volcanica   (un centimetro  de lamina de espesor)  \n> actividad volcanica baja ","MEDIO"]
[3,">distancia del sitio del proyecto en relacion a un edificio volcanico de menos de 30 Kms.\n> con antecedentes de actividad volcanica\n> historial de caida de TEFRA (arena volcanica de  mas de un centimetro  de lamina de espesor)  \n>el sitio del proyecto se encuentra ubucado en, o cerca de quebradas que surgen el edificio volcanico.","ALTO"]
[4,"> Distancia de la obra proyectada en relacion a un edificio volcanico de 20 Kms. o menos)\n> Con historial de frecuente actividad volcánica \n> caida frecuente de TEFRA arena volcanica, lapilli y supera los tres centimetro de espesor\n> Tamaño de la TEFRA volcanica supera los 10 milimetros.\n> Historial de flujos de lava, lahares, flujos piroclasticos en las cercanias del sitio del proyecto.\n>el sitio del proyecto se encuentra ubucado en, o cerca de quebradas que surgen el edificio volcanico.","MUY ALTO"]
[]
[" CRITERIOS PARA DETERMINAR LA PROBABILIDAD DEL NIVEL DE INTENSIDAD EN INUNDACIONES"]
["TABLA No 3\nPONDERACIÓN DEL FACTOR DE INTENSIDAD EN INUNDACIONES"]
["INTENSIDAD","CRITERIO","NIVEL"]
[1,"> no existen antecedentes de inundacion, o cuando se dan entre 0 a 0.6 mts de altura.\n> No hay interrupcion de los servicios\n>no existe rios o cuerpos de agua cercanos\n>sitio del proyecto en terreno elevado.","BAJO"]
[2,">con antecedentes historicos de ocurrencia de inundaciones eventuales.\n>tirante de la inundacion  0.6 a 1 mts.de altura\n>cuando han ocurrido inundaciones el  nivel a alcanzado hasta los cincuenta centímetros  altura.\n>el tiempo de duraccion del espejo de agua producto de la inundacion a durado mas de 24 horas.\n> Daños moderados a la infraestructura \n> afecta el transito de vehiculos.\n> No hay interrupcion de los servicios","MEDIO",null,null,"caso :bangladesh"]
[3,"> El tirante de la inundacion alcanza entre  1  y 3.5 mts.de altura.\n> Colapso parcial de la infraestructura \n> Pérdidas considerables.\n> Interrupcion parcial de los servicios \n>afecta el transito de las personas","ALTO"]
[4,"> El tirante de la inundacion alcanza mas de 3.5 mts.  de altura.\n> cuando sucede se sumerge el primer piso del edificio. \n> Peligro de vidas humanas.\n> Interrupcion de servicios,","MUY ALTO"]
[]
["CRITERIOS PARA DETERMINAR LA PROBABILIDAD DEL NIVEL DE INTENSIDAD EN DESLIZAMIENTOS"]
["TABLA No. 4\nPONDERACIÓN DEL FACTOR DE INTENSIDAD EN DESLIZAMIENTOS"]
["INTENSIDAD","CRITERIO","NIVEL"]
[1,">NO EXISTE HISTORIAL DE DESLIZAMIENTOS\n>TERRENO CLASE I,PLANO O CON PENDIENTE  DE  0 a 12 % \n> TIPO DE SUELO, COMPACTO Y/O ROCOSO\n> EXISTE VEGETACION FORESTAL\n> NO SE OBSERVAN MANTOS FREATICOS\n>LA DISTANCIA AL PROYECTO DE LA CRESTA ES DE 500 MTS O MAS DEL SITIO DEL PROYECTO\n> NO EXISTEN FRACTURAS O GRIETAS QUE PUEDAN AFECTAR EL SITIO DEL PROYECTO\n","BAJO"]
[2,"> NO EXISTE HISTORIAL DE DESLIZAMIENTOS\n>TERRENO CLASE II, CON PENDIENTES DE  APROXIMADAMENTE DE 12 A 25 %\n> TIPO DE SUELO POROSO Y/O CON DENDRITOS\n> NO EXISTE COBERTURA VEGETAL\n> SE OBSERVAN MANTOS FREATICOS\n>LA DISTANCIA AL PROYECTO DE LA CRESTA ES DE 300 A 400   DEL SITIO DEL PROYECTO\n>ZONAS PROBABLES DE DESLIZAMIENTO SEGÚN MAPAS DE CONRED.\n>  FRACTURAS O GRIETAS ORIENTADAS AL SITIO DEL PROYECTO","MEDIO"]
[3,">  EXISTE HISTORIA DE DESLIZAMIENTOS\n>TERRENO  CLASE III, CON PENDIENTES DE  APROXIMADAMENTE DE 25 A 50 %\n> TIPO DE SUELO SUELTO POROSO Y/O CON DENDRITOS\n> NO EXISTE COBERTURA VEGETAL\n> SE OBSERVAN MANTOS FREATICOS\n>LA DISTANCIA AL PROYECTO DE LA CRESTA ES DE 400 A 200   DEL SITIO DEL PROYECTO\n>ZONAS PROBABLES DE DESLIZAMIENTO SEGÚN MAPAS DE CONRED.\n> FRACTURAS O GRIETAS ESTAN ORIENTADAS AL SITIO DEL PROYECTO\n\n","ALTO"]
[4,">  EXISTE HISTORIAL DE CONSTANTES DESLIZAMIENTOS\n>TERRENO  CLASE IV, CON PENDIENTES DE  APROXIMADAMENTE DE 50 0 MAS %\n> TIPO DE SUELO SUELTO POROSO Y/O CON DENDRITOS\n> NO EXISTE COBERTURA VEGETAL\n> SE OBSERVAN MANTOS FREATICOS/ FALTA DE CANALIZACION DE AGUAS NEGRAS Y LLUVIAS.\n>LA DISTANCIA AL PROYECTO DE LA CRESTA ES DE 200 O MENOS DEL SITIO DEL PROYECTO\n>ZONAS PROBABLES DE ALTO RIESGO DE DESLIZAMIENTO SEGÚN MAPAS DE CONRED.\n> LA ORIENTACION DE LAS FRACTURAS O GRIETAS ESTAN ORIENTADAS AL SITIO DEL PROYECTO\n","MUY ALTO"]
[]
[" CRITERIOS PARA DETERMINAR LA PROBABILIDAD DEL NIVEL DE INTENSIDAD \nEN VIENTOS FUERTES (Escala de Beaufort)"]
["TABLA No. 5\nPONDERACIÓN DEL FACTOR DE INTENSIDAD EN DESLIZAMIENTOS"]
["INTENSIDAD","CRITERIO","NIVEL"]
[1,"> Velocidades de 2 a 19 km/h\n> El humo indica la direcciòn del viento (inclinado a casi horizontal)","BAJO"]
[2,"> Velocidades de 20 a 45 km/h\n> los vientos doblan ramas, Pequeños movimientos delos árboles \n> Superficie de los lagos y mares ondulada, olas largas, marejada. ","MEDIO"]
[3,"> Velocidades de 46 a 75 km/h\n> Se quiebran las copas delos árboles, circulación depersonas dificultosa (caminar inclinado, dificil caminar).\n>En el mar vuela espuma, rompen olas.","ALTO"]
[4,"> Velocidades de 76 a +100 km/h\n> Árboles arrancados, dañosen la estructura de lasconstrucciones\n> En en mar Olas gigantes, Espuma blanca","MUY ALTO"]
[]
[" CRITERIOS PARA DETERMINAR LA PROBABILIDAD DEL NIVEL DE INTENSIDAD \nDE HURACANES"]
["TABLA No. 6\nPONDERACIÓN DEL FACTOR DE INTENSIDAD EN HURACANES"]
["INTENSIDAD","CRITERIO","NIVEL"]
[1,"> Sin daños en las estructuras de los edificios. \n> Daños básicamente en arbustos y árboles. \n> Inundaciones en zonas costeras.","BAJO"]
[2,"> Daños en techos, puertas y ventanas de estructuras pequeñas. \n> Importantes daños en la vegetación. \n> Posibilidad de inundaciones tierra adentro.","MEDIO"]
[3,"> Daños estructurales en edificios mayores. \n> Las inundaciones destruyen edificaciones pequeñas.  \n> Inundaciones tierra adentro.","ALTO"]
[4,"> Destrucción de tejados completa en algunos edificios. \n> Las inundaciones dañan las plantas bajas de las estructuras. \n> Evacuación masiva de áreas residenciales. \n> Los vientos de 300 km/h pueden arrancar árboles y hasta casas desde sus \n    cimientos.","MUY ALTO"]
[]
[]
[" CRITERIOS PARA DETERMINAR LA PROBABILIDAD DEL NIVEL DE INTENSIDAD \nDE OTRAS AMENAZAS"]
["TABLA No. 7\nPONDERACIÓN DEL FACTOR DE INTENSIDAD OTRAS AMENAZAS"]
["INTENSIDAD","CRITERIO","NIVEL"]
[1,"> Sin daños significativos a la infraestrucura\n> Pérdidas relativamente sin importancia\n> Sin interrupción de los servicios básicos","BAJO"]
[2,"> Daños leves a la infraestructura\n> Pérdidas de baja consideración\n> Interrupción momentánea de los servicios básicos","MEDIO"]
[3,"> Daños severos a la infraestructura\n> Pérdidas elevadas\n> Interrupción partcial de los servicios básicos","ALTO"]
[4,"> Colapso de algunas construcciones\n> Pérdidas de gran magnitud\n> Interrupción de servicios básicos por períodos largos","MUY ALTO"]

{"sheet":"Hoja1","index":1,"n_rows":15,"n_cols":4,"rows_kept":15,"cut":false,"hidden":false,"merged":[]}
[]
[]
[]
[]
[]
[]
[]
[]
[]
[]
[]
[]
[]
[]
[null,null,null,"Instrucciones:  Para iniciar darle click al botón habilitar contenido en la parte superior "]

{"sheet":"Buscardatos","index":2,"n_rows":341,"n_cols":10,"rows_kept":341,"cut":false,"hidden":true,"merged":[]}
[null,null,null,null,null,null,null,"Región","Buscado dpto","Buscado Muni"]
["Zacapa","ZACAPA",null,null,"Santa Catarina Pinula","SANTA_CATARINA_PINULA",null,"I","Guatemala","Santa Catarina Pinula"]
["Chiquimula","CHIQUIMULA",null,null,"San José Pinula","SAN_JOSÉ_PINULA",null,"Cambio Nom",{"$f":"IFERROR(VLOOKUP(I2,A2:B23,2,0),\" \")","v":"GUATEMALA"},{"$f":"IFERROR(VLOOKUP(J2,E2:F341,2,0),\" \")","v":"SANTA_CATARINA_PINULA"}]
["El Progreso","EL_PROGRESO",321,null,"Guatemala","GUATEMALA"]
["Izabal","IZABAL",null,null,"San José del Golfo","SAN_JOSÉ_DEL_GOLFO"]
["Sacatepéquez","SACATEPÉQUEZ",null,null,"Palencia","PALENCIA",null,null,{"$f":"CaseVLook(J2,E2:F341,2)","v":"SANTA_CATARINA_PINULA"}]
["Chimaltenango","CHIMALTENANGO",null,null,"Chinautla","CHINAUTLA"]
["Escuintla","ESCUINTLA",null,null,"San Pedro Ayampuc","SAN_PEDRO_AYAMPUC"]
["Retalhuleu","RETALHULEU",null,null,"Mixco","MIXCO"]
["Suchitepéquez","SUCHITEPEQUEZ",null,null,"San Pedro Sacatepéquez Guatemala","SAN_PEDRO_SACATEPÉQUEZ"]
["Totonicapán","TOTONICAPAN",null,null,"San Juan Sacatepéquez","SAN_JUAN_SACATEPÉQUEZ"]
["Sololá","SOLOLA",null,null,"San Raymundo","SAN_RAYMUNDO"]
["San Marcos","SAN_MARCOS",null,null,"Chuarrancho","CHUARRANCHO"]
["Quetzaltenango","QUETZALTENANGO",null,null,"Fraijanes","FRAIJANES"]
["Petén","PETEN",null,null,"Amatitlan","AMATITLAN"]
["Jutiapa","JUTIAPA",null,null,"Villa Nueva","VILLA_NUEVA"]
["Jalapa","JALAPA",null,null,"Villa Canales","VILLA_CANALES"]
["Santa Rosa","SANTA_ROSA",null,null,"San Miguel Petapa","SAN_MIGUEL_PETAPA"]
["Huehuetenango","HUEHUETENANGO",null,null,"Chahal","CHAHAL"]
["Quiché","QUICHE",null,null,"Chisec","CHISEC"]
["Guatemala","GUATEMALA",null,null,"Cobán","COBÁN"]
["Alta Verapaz","ALTA_VERAPAZ",null,null,"Fray Bartolomé de las Casas","FRAY_BARTOLOMÉ_DE_LAS_CASAS"]
["Baja Verapaz","BAJA_VERAPAZ",null,null,"Panzóz","PANZÓS"]
[null,null,null,null,"Raxruhá","RAXRUHÁ"]
[null,null,null,null,"San Agustín Lanquín","LANQUÍN"]
[null,null,null,null,"San Cristóbal Verapaz","SAN_CRISTÓBAL_VERAPAZ"]
[null,null,null,null,"San Juan Chamelco","SAN_JUAN_CHAMELCO"]
[null,null,null,null,"San Miguel Tucurú","TUCURÚ"]
[null,null,null,null,"San Pedro Carchá","SAN_PEDRO_CARCHÁ"]
[null,null,null,null,"Santa Catalina La Tinta","SANTA_CATALINA_LA_TINTA"]
[null,null,null,null,"Santa Cruz Verapaz","SANTA_CRUZ_VERAPAZ"]
[null,null,null,null,"Santa María Cahabón","SANTA_MARÍA_CAHABÓN"]
[null,null,null,null,"Senahú","SENAHÚ"]
[null,null,null,null,"Tactic","TACTIC"]
[null,null,null,null,"Tamahú","TAMAHÚ"]
[null,null,null,null,"Cubulco","CUBULCO"]
[null,null,"Ana Belen",null,"Granados","GRANADOS"]
[null,null,1234,null,"Purulhá","PURULHÁ"]
[null,null,"Sofío",null,"Rabinal","RABINAL"]
[null,null,4321,null,"Salamá","SALAMÁ"]
[null,null,null,null,"San Jerónimo","SAN_JERÓNIMO"]
[null,null,null,null,"San Miguel Chicaj","SAN_MIGUEL_CHICAJ"]
[null,null,null,null,"Santa Cruz el Chol","SANTA_CRUZ_EL_CHOL"]
[null,null,null,null,"Camotán","CAMOTAN"]
[null,null,null,null,"Chiquimula","CHIQUIMULA"]
[null,null,null,null,"Concepción Las Minas","CONCEPCIÓN_LAS_MINAS"]
[null,null,null,null,"Esquipulas","ESQUIPULAS"]
[null,null,null,null,"Ipala","IPALA"]
[null,null,null,null,"Jocotán","JOCOTÁN"]
[null,null,null,null,"Olopa","OLOPA"]
[null,null,null,null,"Quezaltepeque","QUETZALTEPEQUE"]
[null,null,null,null,"San Jacinto","SAN_JACINTO"]
[null,null,null,null,"San José la Arada","SAN_JOSÉ_LA_ARADA"]
[null,null,null,null,"San Juan Ermita","SAN_JUAN_ERMITA"]
[null,null,null,null,"El Jícaro","EL_JÍCARO"]
[null,null,null,null,"Guastatoya","GUASTATOYA"]
[null,null,null,null,"Morazán","MORAZÁN"]
[null,null,null,null,"San Agustín Acasaguastlán","SAN_AGUSTÍN_ACASAGUASTLÁN"]
[null,null,null,null,"San Antonio La Paz","SAN_ANTONIO_LA_PAZ"]
[null,null,null,null,"San Cristóbal Acasaguastlán","SAN_CRISTÓBAL_ACASAGUASTLÁN"]
[null,null,null,null,"Sanarate","SANARATE"]
[null,null,null,null,"Sansare","SANSARE"]
[null,null,null,null,"El Estor","EL_ESTOR"]
[null,null,null,null,"Livingston","LIVINGSTON"]
[null,null,null,null,"Los Amates","LOS_AMATES"]
[null,null,null,null,"Morales","MORALES"]
[null,null,null,null,"Puerto Barrios","PUERTO_BARRIOS"]
[null,null,null,null,"Cabañas","CABAÑAS"]
[null,null,null,null,"Estanzuela","ESTANZUELA"]
[null,null,null,null,"Gualán","GUALÁN"]
[null,null,null,null,"Huité","HUITÉ"]
[null,null,null,null,"La Unión","LA_UNIÓN"]
[null,null,null,null,"Río Hondo","RÍO_HONDO"]
[null,null,null,null,"San Diego","SAN_DIEGO"]
[null,null,null,null,"San Jorge","SAN_JORGE_ZACAPA"]
[null,null,null,null,"Teculután","TECULUTÁN"]
[null,null,null,null,"Usumatlán","USUMATLÁN"]
[null,null,null,null,"Zacapa","ZACAPA"]
[null,null,null,null,"Agua Blanca","AGUA BLANCA"]
[null,null,null,null,"Asunción Mita","ASUNCION MITA"]
[null,null,null,null,"Atescatempa","ATESCATEMPA"]
[null,null,null,null,"Comapa","COMAPA"]
[null,null,null,null,"Conguaco","CONGUACO"]
[null,null,null,null,"El Adelanto","EL_ADELANTO"]
[null,null,null,null,"El Progreso","EL_PROGRESO"]
[null,null,null,null,"Jalpatagua","JALPATAGUA"]
[null,null,null,null,"Jerez","JEREZ"]
[null,null,null,null,"Jutiapa","JUTIAPA"]
[null,null,null,null,"Moyuta","MOYUTA"]
[null,null,null,null,"Pasaco","PASACO"]
[null,null,null,null,"Quesada","QUESADA"]
[null,null,null,null,"Santa Catarina Mita","SANTA_CATARINA_MITA"]
[null,null,null,null,"Yupiltepeque","YUPILTEPEQUE"]
[null,null,null,null,"Zapotitlán","ZAPOTITLÁN"]
[null,null,null,null,"San José Acatempa","SAN_JOSÉ_ACATEMPA"]
[null,null,null,null,"Jalapa","JALAPA"]
[null,null,null,null,"Mataquescuintla","MATAQUESCUINTLA"]
[null,null,null,null,"Monjas","MONJAS"]
[null,null,null,null,"San Carlos Alzatate","SAN_CARLOS_ALZATATE"]
[null,null,null,null,"San Luis Jilotepeque","SAN_LUIS_JILOTEPEQUE"]
[null,null,null,null,"San Manuel Chaparrón","SAN_MANUEL_CHAPARRÓN"]
[null,null,null,null,"San Pedro Pinula","SAN_PEDRO_PINULA"]
[null,null,null,null,"Barberena","BARBERENA"]
[null,null,null,null,"Casillas Santa Rosa","CASILLAS"]
[null,null,null,null,"Chiquimulilla","CHIQUIMULILLA"]
[null,null,null,null,"Cuilapa","CUILAPA"]
[null,null,null,null,"Guazacapán","GUAZACAPÁN"]
[null,null,null,null,"Nueva Santa Rosa","NUEVA_SANTA_ROSA"]
[null,null,null,null,"Oratorio","ORATORIO"]
[null,null,null,null,"Pueblo Nuevo Viñas","PUEBLO_NUEVO_VIÑAS"]
[null,null,null,null,"San Juan Tecuaco","SAN_JUAN_TECUACO"]
[null,null,null,null,"San Rafael Las Flores","SAN_RAFAEL_LAS_FLORES"]
[null,null,null,null,"Santa Cruz Naranjo","SANTA_CRUZ_NARANJO"]
[null,null,null,null,"Santa María Ixhuatán","SANTA_MARÍA_IXHUATÁN"]
[null,null,null,null,"Santa Rosa de Lima","SANTA_ROSA_DE_LIMA"]
[null,null,null,null,"Taxisco","TAXISCO"]
[null,null,null,null,"Acatenango","ACATENANGO"]
[null,null,null,null,"Chimaltenango","CHIMALTENANGO"]
[null,null,null,null,"El Tejar","EL_TEJAR"]
[null,null,null,null,"Parramos","PARRAMOS"]
[null,null,null,null,"Patzicía","PATZICÍA"]
[null,null,null,null,"Patzún","PATZÚN"]
[null,null,null,null,"San Andrés Itzapa","SAN_ANDRÉS_CHIMALTENANGO"]
[null,null,null,null,"San José Poaquil","SAN_JOSÉ_POAQUIL"]
[null,null,null,null,"San Juan Comalapa","SAN_JUAN_COMALAPA"]
[null,null,null,null,"San Martín Jilotepeque","SAN_MARTÍN_JILOTEPEQUE"]
[null,null,null,null,"San Miguel Pochuta","POCHUTA"]
[null,null,null,null,"San Pedro Yepocapa","YEPOCAPA"]
[null,null,null,null,"Santa Apolonia","SANTA_APOLONIA"]
[null,null,null,null,"Santa Cruz Balanyá","SANTA_CRUZ_BALANYÁ"]
[null,null,null,null,"Tecpán","TECPÁN_GUATEMALA"]
[null,null,null,null,"Zaragoza","ZARAGOZA"]
[null,null,null,null,"Antigua Guatemala","ANTIGUA GUATEMALA"]
[null,null,null,null,"Ciudad Vieja","CIUDAD_VIEJA"]
[null,null,null,null,"Jocotenango","JOCOTENANGO"]
[null,null,null,null,"Magdalena Milpas Altas","MAGDALENA_MILPAS_ALTAS"]
[null,null,null,null,"Pastores","PASTORES"]
[null,null,null,null,"San Antonio Aguas Calientes","SAN_ANTONIO_AGUAS_CALIENTES"]
[null,null,null,null,"San Bartolomé Milpas Altas","SAN_BARTOLOMÉ_MILPAS_ALTAS"]
[null,null,null,null,"San Juan Alotenango","ALOTENANGO"]
[null,null,null,null,"San Lucas Sacatepéquez","SAN_LUCAS_SACATEPÉQUEZ"]
[null,null,null,null,"San Miguel Dueñas","SAN_MIGUEL_DUEÑAS"]
[null,null,null,null,"Santa Catarina Barahona","SANTA_CATARINA_BARAHONA"]
[null,null,null,null,"Santa Lucía Milpas Altas","SANTA_LUCÍA_MILPAS_ALTAS"]
[null,null,null,null,"Santa María de Jesús","SANTA_MARÍA_DE_JESÚS"]
[null,null,null,null,"Santiago Sacatepéquez","SANTIAGO_SACATEPÉQUEZ"]
[null,null,null,null,"Santo Domingo Xenacoj","SANTO_DOMINGO_XENACOJ"]
[null,null,null,null," Sumpango","SUMPANGO"]
[null,null,null,null,"Escuintla","ESCUINTLA"]
[null,null,null,null,"Santa Lucía Cotzumalguapa","SANTA_LUCÍA_COTZUMALGUAPA"]
[null,null,null,null,"La Democracia Escuintla","LA_DEMOCRACIA"]
[null,null,null,null,"Siquinalá","SIQUINALÁ"]
[null,null,null,null,"Masagua","MASAGUA"]
[null,null,null,null,"Tiquisate","TIQUISATE"]
[null,null,null,null,"La Gomera","LA_GOMERA"]
[null,null,null,null,"Guaganazapa","GUANAGAZAPA"]
[null,null,null,null,"San José Escuintla","SAN_JOSÉ."]
[null,null,null,null,"Iztapa","IZTAPA"]
[null,null,null,null,"Palín","PALÍN"]
[null,null,null,null,"San Vicente Pacaya","SAN_VICENTE_PACAYA"]
[null,null,null,null,"Nueva Concepción","NUEVA_CONCEPCIÓN"]
[null,null,null,null,"Sipacate","SIPACATE"]
[null,null,null,null,"Almolonga","ALMOLONGA"]
[null,null,null,null,"Cabricán","CABRICAN"]
[null,null,null,null,"Cajolá","CAJOLA"]
[null,null,null,null,"Cantel","CANTEL"]
[null,null,null,null,"Colomba Costa Cuca","COLOMBA"]
[null,null,null,null,"Concepción Chiquirichapa","CONCEPCIÓN_CHIQUIRICHAPA"]
[null,null,null,null,"El Palmar","EL_PALMAR"]
[null,null,null,null,"Flores Costa Cuca","FLORES_COSTA_CUCA"]
[null,null,null,null,"Génova","GÉNOVA"]
[null,null,null,null,"Huitán","HUITÁN"]
[null,null,null,null,"La Esperanza","LA_ESPERANZA"]
[null,null,null,null,"Palestina de Los Altos","PALESTINA_DE_LOS_ALTOS"]
[null,null,null,null,"Quetzaltenango","QUETZALTENANGO"]
[null,null,null,null,"Salcajá","SALCAJÁ"]
[null,null,null,null,"San Carlos Sija","SAN_CARLOS_SIJA"]
[null,null,null,null,"San Francisco La Unión","SAN_FRANCISCO_LA_UNIÓN"]
[null,null,null,null,"San Juan Olintepeque","OLINTEPEQUE"]
[null,null,null,null,"San Juan Ostuncalco","SAN_JUAN_OSTUNCALCO"]
[null,null,null,null,"San Martín Sacatepéquez","SAN_MARTÍN_SACATEPÉQUEZ"]
[null,null,null,null,"San Mateo","SAN_MATEO"]
[null,null,null,null,"San Miguel Siguilá","SAN_MIGUEL_SIGÜILÁ"]
[null,null,null,null,"Sibilia","SIBILIA"]
[null,null,null,null,"Zunil","ZUNIL"]
[null,null,null,null,"Coatepeque","COATEPEQUE"]
[null,null,null,null,"Champerico","CHAMPERICO"]
[null,null,null,null,"El Asintal","EL_ASINTAL"]
[null,null,null,null,"Nuevo San Carlos","NUEVO_SAN_CARLOS"]
[null,null,null,null,"Retalhuleu","RETALHULEU"]
[null,null,null,null,"San Andrés Villa Seca","SAN_ANDRÉS_VILLA_SECA"]
[null,null,null,null,"San Felipe","SAN_FELIPE"]
[null,null,null,null,"San Martín Zapotitlán","SAN_MARTÍN_ZAPOTITLÁN"]
[null,null,null,null,"San Sebastián","SAN_SEBASTIÁN"]
[null,null,null,null,"Santa Cruz Muluá","SANTA_CRUZ_MULUÁ"]
[null,null,null,null,"Ayutla","AYUTLA"]
[null,null,null,null,"Catarina","CATARINA"]
[null,null,null,null,"Comitancillo","COMITANCILLO"]
[null,null,null,null,"Concepción Tutuapa","CONCEPCIÓN_TUTUAPA"]
[null,null,null,null,"El Quetzal","EL_QUETZAL"]
[null,null,null,null,"El Rodeo","EL_RODEO"]
[null,null,null,null,"El Tumblador","EL_TUMBADOR"]
[null,null,null,null,"Esquipulas Palo Gordo","ESQUIPULAS_PALO_GORDO"]
[null,null,null,null,"Ixchiguán","IXCHIGUAN"]
[null,null,null,null,"La Blanca","LA_BLANCA"]
[null,null,null,null,"La Reforma","LA_REFORMA"]
[null,null,null,null,"Malacatán","MALACATÁN"]
[null,null,null,null,"Nuevo Progreso","NUEVO_PROGRESO"]
[null,null,null,null,"Ocós","OCÓS"]
[null,null,null,null,"Pajapita","PAJAPITA"]
[null,null,null,null,"Río Blanco","RÍO_BLANCO"]
[null,null,null,null,"San Antonio Sacatepéquez","SAN_ANTONIO_SACATEPÉQUEZ"]
[null,null,null,null,"San Cristóbal Cucho","SAN_CRISTÓBAL_CUCHO"]
[null,null,null,null,"San José Ojetenam","SAN_JOSÉ_OJETENAM"]
[null,null,null,null,"San Lorenzo","SAN_LORENZO"]
[null,null,null,null,"San Marcos","SAN_MARCOS"]
[null,null,null,null,"San Miguel Ixtahuacán","SAN_MIGUEL_IXTAHUACÁN"]
[null,null,null,null,"San Pablo","SAN_PABLO"]
[null,null,null,null,"San Pedro Sacatepéquez","SAN_PEDRO_SACATEPÉQUEZ"]
[null,null,null,null,"San Rafael Pie de la Cuesta","SAN_RAFAEL_PIE_DE_LA_CUESTA"]
[null,null,null,null,"Sibinal","SIBINAL"]
[null,null,null,null,"Sipacapa","SIPACAPA"]
[null,null,null,null,"Tacaná","TACANÁ"]
[null,null,null,null,"Tajumulco","TAJUMULCO"]
[null,null,null,null,"Tejutla","TEJUTLA"]
[null,null,null,null,"Chicacao","CHICACAO"]
[null,null,null,null,"Cuyotenango","CUYOTENANGO"]
[null,null,null,null,"Mazatenango","MAZATENANGO"]
[null,null,null,null,"Patulul","PATULUL"]
[null,null,null,null,"Pueblo Nuevo","PUEBLO_NUEVO"]
[null,null,null,null,"Río Bravo","RÍO_BRAVO"]
[null,null,null,null,"Samayac","SAMAYAC"]
[null,null,null,null,"San Antonio Suchitépequez","SAN_ANTONIO_SUCHITEPÉQUEZ"]
[null,null,null,null,"San Bernardino","SAN_BERNARDINO"]
[null,null,null,null,"San Francisco Zapotitlán","SAN_FRANCISCO_ZAPOTITLÁN"]
[null,null,null,null,"San Gabriel","SAN_GABRIEL"]
[null,null,null,null,"San José El Ídolo","SAN_JOSÉ_EL_ÍDOLO"]
[null,null,null,null,"San Juan Bautista","SAN_JUAN_BAUTISTA"]
[null,null,null,null,"San Lorenzo Suchitépequez","SAN_LORENZO"]
[null,null,null,null,"San José la Máquina","SAN_JOSÉ_LA_MÁQUINA"]
[null,null,null,null,"San Miguel Panán","SAN_MIGUEL_PANÁN"]
[null,null,null,null,"San Pablo Jocopilas","SAN_PABLO_JOCOPILAS"]
[null,null,null,null,"Santa Bárbara Suchitépequez","SANTA_BÁRBARA"]
[null,null,null,null,"Santo Domingo Suchitépequez","SANTO_DOMINGO_SUCHITEPÉQUEZ"]
[null,null,null,null,"Santo Tomás La Unión","SANTO_TOMÁS_LA_UNIÓN"]
[null,null,null,null,"Zunilito","ZUNILITO"]
[null,null,null,null,"Concepción","CONCEPCIÓN"]
[null,null,null,null,"Nahualá","NAHUALÁ"]
[null,null,null,null,"Panajachel","PANAJACHEL"]
[null,null,null,null,"San Andrés Semetabaj","SAN_ANDRÉS_SEMETABAJ"]
[null,null,null,null,"San Antonio Palopó","SAN_ANTONIO_PALOPÓ"]
[null,null,null,null,"San José Chacayá","SAN_JOSÉ_CHACAYÁ"]
[null,null,null,null,"San Juan La Laguna","SAN_JUAN_LA_LAGUNA"]
[null,null,null,null,"San Lucas Tolimán","SAN_LUCAS_TOLIMÁN"]
[null,null,null,null,"San Marcos La Laguna","SAN_MARCOS_LA_LAGUNA"]
[null,null,null,null,"San Pablo La Laguna","SAN_PABLO_LA_LAGUNA"]
[null,null,null,null,"San Pedro La Laguna","SAN_PEDRO_LA_LAGUNA"]
[null,null,null,null,"Santa Catarina Ixtahuacán","SANTA_CATARINA_IXTAHUACÁN"]
[null,null,null,null,"Santa Catarina Palopó","SANTA_CATARINA_PALOPÓ"]
[null,null,null,null,"Santa Clara La Laguna","SANTA_CLARA_LA_LAGUNA"]
[null,null,null,null,"Santa Cruz La Laguna","SANTA_CRUZ_LA_LAGUNA"]
[null,null,null,null,"Santa Lucía Utatlán","SANTA_LUCÍA_UTATLÁN"]
[null,null,null,null,"Santa María Visitación","SANTA_MARÍA_VISITACIÓN"]
[null,null,null,null,"Santiago Atitlán","SANTIAGO_ATITLÁN"]
[null,null,null,null,"Sololá","SOLOLÁ"]
[null,null,null,null,"Momostenango","MOMOSTENANGO"]
[null,null,null,null,"San Andrés Xecul","SAN_ANDRÉS_XECUL"]
[null,null,null,null,"San Bartolo","SAN_BARTOLO"]
[null,null,null,null,"San Cristóbal Totonicapán","SAN_CRISTÓBAL_TOTONICAPÁN"]
[null,null,null,null,"San Francisco El Alto","SAN_FRANCISCO_EL_ALTO"]
[null,null,null,null,"Santa Lucía La Reforma","SANTA_LUCÍA_LA_REFORMA"]
[null,null,null,null,"Santa María Chiquimula","SANTA_MARÍA_CHIQUIMULA"]
[null,null,null,null,"Totonicapán","TOTONICAPÁN"]
[null,null,null,null,"Aguacatán","AGUACATAN"]
[null,null,null,null,"Chiantla","CHIANTLA"]
[null,null,null,null,"Colotenango","COLOTENANGO"]
[null,null,null,null,"Concepción Huista","CONCEPCIÓN_HUISTA"]
[null,null,null,null,"Cuilco","CUILCO"]
[null,null,null,null,"Huehuetenango","HUEHUETENANGO"]
[null,null,null,null,"San Ildefonso Ixtahuacán","SAN_ILDEFONSO_IXTAHUACÁN"]
[null,null,null,null,"Jacaltenango","JACALTENANGO"]
[null,null,null,null,"La Democracia","LA_DEMOCRACIA"]
[null,null,null,null,"La Libertad","LA_LIBERTAD."]
[null,null,null,null,"Malacatancito","MALACATANCITO"]
[null,null,null,null,"Nentón","NENTÓN"]
[null,null,null,null,"San Antonio Huista","SAN_ANTONIO_HUISTA"]
[null,null,null,null,"San Gaspar Ixchil","SAN_GASPAR_IXCHIL"]
[null,null,null,null,"San Juan Atitlán","SAN_JUAN_ATITÁN"]
[null,null,null,null,"San Juan Ixcoy","SAN_JUAN_IXCOY"]
[null,null,null,null,"San Mateo Ixtatán","SAN_MATEO_IXTATÁN."]
[null,null,null,null,"San Miguel Acatán","SAN_MIGUEL_ACATÁN"]
[null,null,null,null,"San Pedro Necta","SAN_PEDRO_NECTA"]
[null,null,null,null,"San Rafael La Independencia","SAN_RAFAEL_LA_INDEPENDENCIA"]
[null,null,null,null,"San Rafael Petzal","SAN_RAFAEL_PETZAL"]
[null,null,null,null,"San Sebastián Coatán","SAN_SEBASTIÁN_COATÁN"]
[null,null,null,null,"San Sebastián Huehuetenango","SAN_SEBASTIÁN_HUEHUETENANGO"]
[null,null,null,null,"Santa Ana Huista","SANTA_ANA_HUISTA"]
[null,null,null,null,"Santa Bárbara","SANTA_BÁRBARA"]
[null,null,null,null,"Santa Cruz Barillas","SANTA_CRUZ_BARILLAS"]
[null,null,null,null,"Santa Eulalia","SANTA_EULALIA"]
[null,null,null,null,"Santiago Chimaltenango","SANTIAGO_CHIMALTENANGO"]
[null,null,null,null,"Soloma","SAN_PEDRO_SOLOMA"]
[null,null,null,null,"Tectitán","TECTITÁN"]
[null,null,null,null,"Todos Santos Cuchumatán","TODOS_SANTOS_CUCHUMATANES"]
[null,null,null,null,"Petatán","PETATÁN"]
[null,null,null,null,"Unión Cantil","UNIÓN_CANTINIL"]
[null,null,null,null,"Canillá","CANILLA"]
[null,null,null,null,"Chajul","CHAJUL"]
[null,null,null,null,"Chicamán","CHICAMÁN"]
[null,null,null,null,"Chiché","CHICHÉ"]
[null,null,null,null,"Chinique","CHINIQUE"]
[null,null,null,null,"Cunén","CUNÉN"]
[null,null,null,null,"Ixcán","IXCÁN"]
[null,null,null,null,"Pachalum","PACHALUM"]
[null,null,null,null,"Patzité","PATZITÉ"]
[null,null,null,null,"Sacapulas","SACAPULAS"]
[null,null,null,null,"San Andrés Sajcabajá","SAN_ANDRÉS_SAJCABAJÁ"]
[null,null,null,null,"San Antonio Ilotenango","SAN_ANTONIO_ILOTENANGO"]
[null,null,null,null,"San Bartolomé Jocotenango","SAN_BARTOLOMÉ_JOCOTENANGO"]
[null,null,null,null,"San Juan Cotzal","SAN_JUAN_COTZAL"]
[null,null,null,null,"San Pedro Jocopilas","SAN_PEDRO_JOCOPILAS"]
[null,null,null,null,"Santa Cruz del Quiché","SANTA_CRUZ_DEL_QUICHÉ"]
[null,null,null,null,"Santa María Joyabaj","JOYABAJ"]
[null,null,null,null,"Santa María Nebaj","NEBAJ"]
[null,null,null,null,"Santo Tomás Chichicastenango","CHICHICASTENANGO"]
[null,null,null,null,"Uspantán","USPANTÁN"]
[null,null,null,null,"Zacualpa","ZACUALPA"]
[null,null,null,null,"Dolores","DOLORES"]
[null,null,null,null,"Flores","FLORES"]
[null,null,null,null,"La Libertad Petén","LA_LIBERTAD"]
[null,null,null,null,"Melchor de Mencos","MELCHOR_DE_MENCOS"]
[null,null,null,null,"Poptún","POPTÚN"]
[null,null,null,null,"San Andrés","SAN_ANDRÉS_PETÉN"]
[null,null,null,null,"San Benito","SAN_BENITO"]
[null,null,null,null,"San Francisco","SAN_FRANCISCO"]
[null,null,null,null,"San José","SAN_JOSÉ"]
[null,null,null,null,"San Luis","SAN_LUIS"]
[null,null,null,null,"Santa Ana","SANTA_ANA"]
[null,null,null,null,"Sayaxché","SAYAXCHÉ"]
[null,null,null,null,"El Chal","EL_CHAL"]
[null,null,null,null,"Las Cruces","LAS_CRUCES"]

{"sheet":"DATOS_POBLADOS","index":3,"n_rows":341,"n_cols":8,"rows_kept":341,"cut":false,"hidden":true,"merged":[]}
["DEPARTAMENTO","MUNICIPIO","INDICE SISMICIDAD","VELOCIDAD VIENTO",null,"DEPARTAMENTO",null,"REGIONES"]
["ALTA_VERAPAZ","CHAHAL",3,110,null,"ZACAPA",null,"I"]
["ALTA_VERAPAZ","CHISEC",3,100,null,"CHIQUIMULA",null,"II"]
["ALTA_VERAPAZ","COBÁN",4.0999999999999996,100,null,"EL_PROGRESO",null,"III"]
["ALTA_VERAPAZ","FRAY_BARTOLOMÉ_DE_LAS_CASAS",3,110,null,"IZABAL",null,"IV"]
["ALTA_VERAPAZ","LANQUÍN",3,100,null,"SACATEPEQUEZ",null,"V"]
["ALTA_VERAPAZ","PANZÓZ",4.0999999999999996,100,null,"CHIMALTENANGO",null,"VI"]
["ALTA_VERAPAZ","RAXRUHÁ",3,100,null,"ESCUINTLA",null,"VII"]
["ALTA_VERAPAZ","SAN_CRISTÓBAL_VERAPAZ",4.0999999999999996,100,null,"RETALHULEU",null,"VIII"]
["ALTA_VERAPAZ","SAN_JUAN_CHAMELCO",4.0999999999999996,100,null,"SUCHITEPEQUEZ"]
["ALTA_VERAPAZ","SAN_PEDRO_CARCHÁ",4.0999999999999996,100,null,"TOTONICAPAN"]
["ALTA_VERAPAZ","SANTA_CATALINA_LA_TINTA",4.0999999999999996,100,null,"SOLOLA"]
["ALTA_VERAPAZ","SANTA_CRUZ_VERAPAZ",4.0999999999999996,100,null,"SAN_MARCOS"]
["ALTA_VERAPAZ","CAHABÓN",3,110,null,"QUETZALTENANGO"]
["ALTA_VERAPAZ","SENAHÚ",4.0999999999999996,100,null,"PETEN"]
["ALTA_VERAPAZ","TACTIC",4.0999999999999996,100,null,"JUTIAPA"]
["ALTA_VERAPAZ","TAMAHÚ",4.0999999999999996,100,null,"JALAPA"]
["ALTA_VERAPAZ","TUCURÚ",4.0999999999999996,100,null,"SANTA_ROSA"]
["BAJA_VERAPAZ","CUBULCO",4.0999999999999996,100,null,"HUEHUETENANGO"]
["BAJA_VERAPAZ","GRANADOS",4.0999999999999996,100,null,"QUICHE"]
["BAJA_VERAPAZ","PURULHÁ",4.0999999999999996,100,null,"GUATEMALA"]
["BAJA_VERAPAZ","RABINAL",4.0999999999999996,100,null,"ALTA_VERAPAZ"]
["BAJA_VERAPAZ","SALAMÁ",4.0999999999999996,100,null,"BAJA_VERAPAZ"]
["BAJA_VERAPAZ","SAN_JERÓNIMO",4.0999999999999996,100]
["BAJA_VERAPAZ","SAN_MIGUEL_CHICAJ",4.0999999999999996,100]
["BAJA_VERAPAZ","EL_CHOL",4.0999999999999996,100]
["CHIMALTENANGO","ACATENANGO",4.0999999999999996,100]
["CHIMALTENANGO","CHIMALTENANGO",4.0999999999999996,100]
["CHIMALTENANGO","EL_TEJAR",4.0999999999999996,100]
["CHIMALTENANGO","PARRAMOS",4.0999999999999996,100]
["CHIMALTENANGO","PATZICÍA",4.0999999999999996,100]
["CHIMALTENANGO","PATZÚN",4.0999999999999996,100]
["CHIMALTENANGO","POCHUTA",4.0999999999999996,100]
["CHIMALTENANGO","SAN_ANDRÉS_ITZAPA",4.0999999999999996,100]
["CHIMALTENANGO","SAN_JOSÉ_POAQUIL",4.0999999999999996,100]
["CHIMALTENANGO","COMALAPA",4.0999999999999996,100]
["CHIMALTENANGO","SAN_MARTÍN_JILOTEPEQUE",4.0999999999999996,100]
["CHIMALTENANGO","SANTA_APOLONIA",4.0999999999999996,100]
["CHIMALTENANGO","SANTA_CRUZ_BALANYÁ",4.0999999999999996,100]
["CHIMALTENANGO","TECPÁN_GUATEMALA",4.0999999999999996,100]
["CHIMALTENANGO","YEPOCAPA",4.0999999999999996,100]
["CHIMALTENANGO","ZARAGOZA",4.0999999999999996,100]
["CHIQUIMULA","CAMOTÁN",4.0999999999999996,100]
["CHIQUIMULA","CHIQUIMULA",4.0999999999999996,100]
["CHIQUIMULA","CONCEPCIÓN_LAS_MINAS",4.0999999999999996,100]
["CHIQUIMULA","ESQUIPULAS",4.0999999999999996,100]
["CHIQUIMULA","IPALA",4.0999999999999996,100]
["CHIQUIMULA","JOCOTÁN",4.0999999999999996,100]
["CHIQUIMULA","OLOPA",4.0999999999999996,100]
["CHIQUIMULA","QUEZALTEPEQUE",4.0999999999999996,100]
["CHIQUIMULA","SAN_JACINTO",4.0999999999999996,100]
["CHIQUIMULA","SAN_JOSÉ_LA_ARADA",4.0999999999999996,100]
["CHIQUIMULA","SAN_JUAN_HERMITA",4.0999999999999996,100]
["EL_PROGRESO","EL_JÍCARO",4.0999999999999996,100]
["EL_PROGRESO","GUASTATOYA",4.0999999999999996,100]
["EL_PROGRESO","MORAZÁN",4.0999999999999996,100]
["EL_PROGRESO","SAN_AGUSTÍN_ACASAGUASTLÁN",4.0999999999999996,100]
["EL_PROGRESO","SAN_ANTONIO_LA_PAZ",4.0999999999999996,100]
["EL_PROGRESO","SAN_CRISTÓBAL_ACASAGUASTLÁN",4.0999999999999996,100]
["EL_PROGRESO","SANARATE",4.0999999999999996,100]
["EL_PROGRESO","SANSARE",4.0999999999999996,100]
["ESCUINTLA","ESCUINTLA",4.2,100]
["ESCUINTLA","GUAGANAZAPA",4.2,110]
["ESCUINTLA","IZTAPA",4.2,110]
["ESCUINTLA","LA_DEMOCRACIA",4.2,110]
["ESCUINTLA","LA_GOMERA",4.2,110]
["ESCUINTLA","MASAGUA",4.2,110]
["ESCUINTLA","NUEVA_CONCEPCIÓN",4.2,110]
["ESCUINTLA","PALÍN",4.2,100]
["ESCUINTLA","SAN_JOSÉ",4.2,110]
["ESCUINTLA","SAN_VICENTE_PACAYA",4.2,100]
["ESCUINTLA","SANTA_LUCÍA_COTZUMALGUAPA",4.2,100]
["ESCUINTLA","SIPACATE",4.2,110]
["ESCUINTLA","SIQUINALÁ",4.2,100]
["ESCUINTLA","TIQUISATE",4.2,110]
["GUATEMALA","AMATITLÁN",4.0999999999999996,100]
["GUATEMALA","CHINAUTLA",4.0999999999999996,100]
["GUATEMALA","CHUARRANCHO",4.0999999999999996,100]
["GUATEMALA","FRAIJANES",4.0999999999999996,100]
["GUATEMALA","GUATEMALA",4.0999999999999996,100]
["GUATEMALA","MIXCO",4.0999999999999996,100]
["GUATEMALA","PALENCIA",4.0999999999999996,100]
["GUATEMALA","SAN_JOSÉ_DEL_GOLFO",4.0999999999999996,100]
["GUATEMALA","SAN_JOSÉ_PINULA",4.0999999999999996,100]
["GUATEMALA","SAN_JUAN_SACATEPÉQUEZ",4.0999999999999996,100]
["GUATEMALA","SAN_MIGUEL_PETAPA",4.0999999999999996,100]
["GUATEMALA","SAN_PEDRO_AYAMPUC",4.0999999999999996,100]
["GUATEMALA","SAN_PEDRO_SACATAPÉQUEZ",4.0999999999999996,100]
["GUATEMALA","SAN_RAYMUNDO",4.0999999999999996,100]
["GUATEMALA","SANTA_CATARINA_PINULA",4.0999999999999996,100]
["GUATEMALA","VILLA_CANALES",4.0999999999999996,100]
["GUATEMALA","VILLA_NUEVA",4.0999999999999996,100]
["HUEHUETENANGO","AGUACATÁN",4.0999999999999996,100]
["HUEHUETENANGO","CHIANTLA",4.0999999999999996,100]
["HUEHUETENANGO","COLOTENANGO",4.0999999999999996,100]
["HUEHUETENANGO","CONCEPCIÓN_HUISTA",4.0999999999999996,100]
["HUEHUETENANGO","CUILCO",4.0999999999999996,100]
["HUEHUETENANGO","HUEHUETENANGO",4.0999999999999996,100]
["HUEHUETENANGO","JACALTENANGO",4.0999999999999996,100]
["HUEHUETENANGO","LA_DEMOCRACIA",4.0999999999999996,100]
["HUEHUETENANGO","LA_LIBERTAD",4.0999999999999996,100]
["HUEHUETENANGO","MALACATANCITO",4.0999999999999996,100]
["HUEHUETENANGO","NENTÓN",4.0999999999999996,100]
["HUEHUETENANGO","PETATÁN",4.0999999999999996,100]
["HUEHUETENANGO","SAN_ANTONIO_HUISTA",4.0999999999999996,100]
["HUEHUETENANGO","SAN_GASPAR_IXCHIL",4.0999999999999996,100]
["HUEHUETENANGO","SAN_ILDEFONSO_IXTAHUACÁN",4.0999999999999996,100]
["HUEHUETENANGO","SAN_JUAN_ATITÁN",4.0999999999999996,100]
["HUEHUETENANGO","SAN_JUAN_IXCOY",4.0999999999999996,100]
["HUEHUETENANGO","SAN_MATEO_IXTATÁN",3,100]
["HUEHUETENANGO","SAN_MIGUEL_ACATÁN",4.0999999999999996,100]
["HUEHUETENANGO","SAN_PEDRO_NECTA",4.0999999999999996,100]
["HUEHUETENANGO","SOLOMA",3,100]
["HUEHUETENANGO","SAN_RAFAEL_LA_INDEPENDENCIA",4.0999999999999996,100]
["HUEHUETENANGO","SAN_RAFAEL_PÉTZAL",4.0999999999999996,100]
["HUEHUETENANGO","SAN_SEBASTIÁN_COATÁN",4.0999999999999996,100]
["HUEHUETENANGO","SAN_SEBASTIÁN_HUEHUETENANGO",4.0999999999999996,100]
["HUEHUETENANGO","SANTA_ANA_HUISTA",4.0999999999999996,100]
["HUEHUETENANGO","SANTA_BÁRBARA",4.0999999999999996,100]
["HUEHUETENANGO","BARILLAS",3,100]
["HUEHUETENANGO","SANTA_EULALIA",3,100]
["HUEHUETENANGO","SANTIAGO_CHIMALTENANGO",4.0999999999999996,100]
["HUEHUETENANGO","TECTITÁN",4.0999999999999996,100]
["HUEHUETENANGO","TODOS_SANTOS_CUCHUMATÁN",4.0999999999999996,100]
["HUEHUETENANGO","UNIÓN_CANTINIL",4.0999999999999996,100]
["IZABAL","EL_ESTOR",4.0999999999999996,110]
["IZABAL","LIVINGSTON",4.0999999999999996,120]
["IZABAL","LOS_AMATES",4.0999999999999996,110]
["IZABAL","MORALES",4.0999999999999996,110]
["IZABAL","PUERTO_BARRIOS",4.0999999999999996,120]
["JALAPA","JALAPA",4.0999999999999996,100]
["JALAPA","MATAQUESCUINTLA",4.0999999999999996,100]
["JALAPA","MONJAS",4.0999999999999996,100]
["JALAPA","SAN_CARLOS_ALZATATE",4.0999999999999996,100]
["JALAPA","SAN_LUIS_JILOTEPEQUE",4.0999999999999996,100]
["JALAPA","SAN_MANUEL_CHAPARRÓN",4.0999999999999996,100]
["JALAPA","SAN_PEDRO_PINULA",4.0999999999999996,100]
["JUTIAPA","AGUA_BLANCA",4.0999999999999996,100]
["JUTIAPA","ASUNCIÓN_MITA",4.0999999999999996,100]
["JUTIAPA","ATESCATEMPA",4.0999999999999996,100]
["JUTIAPA","COMAPA",4.0999999999999996,100]
["JUTIAPA","CONGUACO",4.2,100]
["JUTIAPA","EL_ADELANTO",4.0999999999999996,100]
["JUTIAPA","EL_PROGRESO",4.0999999999999996,100]
["JUTIAPA","JALPATAGUA",4.0999999999999996,100]
["JUTIAPA","JEREZ",4.0999999999999996,100]
["JUTIAPA","JUTIAPA",4.0999999999999996,100]
["JUTIAPA","MOYUTA",4.2,110]
["JUTIAPA","PASACO",4.2,110]
["JUTIAPA","QUESADA",4.0999999999999996,100]
["JUTIAPA","SAN_JOSÉ_ACATEMPA",4.0999999999999996,100]
["JUTIAPA","SANTA_CATARINA_MITA",4.0999999999999996,100]
["JUTIAPA","YUPILTEPEQUE",4.0999999999999996,100]
["JUTIAPA","ZAPOTITLÁN",4.0999999999999996,100]
["PETEN","DOLORES",2,110]
["PETEN","EL_CHAL",2,100]
["PETEN","FLORES",2,100]
["PETEN","LA_LIBERTAD",2,100]
["PETEN","LAS_CRUCES",2,100]
["PETEN","MELCHOR_DE_MENCOS",2,110]
["PETEN","POPTÚN",2,110]
["PETEN","SAN_ANDRÉS",2,100]
["PETEN","SAN_BENITO",2,100]
["PETEN","SAN_FRANCISCO",3,100]
["PETEN","SAN_JOSÉ",2,100]
["PETEN","SAN_LUIS",2,110]
["PETEN","SANTA_ANA",2,100]
["PETEN","SAYAXCHÉ",2,100]
["QUETZALTENANGO","ALMOLONGA",4.0999999999999996,100]
["QUETZALTENANGO","CABRICÁN",4.0999999999999996,100]
["QUETZALTENANGO","CAJOLÁ",4.0999999999999996,100]
["QUETZALTENANGO","CANTEL",4.0999999999999996,100]
["QUETZALTENANGO","COATEPEQUE",4.2,110]
["QUETZALTENANGO","COLOMBA",4.2,100]
["QUETZALTENANGO","CONCEPCIÓN_CHIQUIRICHAPA",4.0999999999999996,100]
["QUETZALTENANGO","EL_PALMAR",4.2,100]
["QUETZALTENANGO","FLORES_COSTA_CUCA",4.2,110]
["QUETZALTENANGO","GÉNOVA",4.2,110]
["QUETZALTENANGO","HUITÁN",4.0999999999999996,100]
["QUETZALTENANGO","LA_ESPERANZA",4.0999999999999996,100]
["QUETZALTENANGO","OLINTEPEQUE",4.0999999999999996,100]
["QUETZALTENANGO","PALESTINA_DE_LOS_ALTOS",4.0999999999999996,100]
["QUETZALTENANGO","QUETZALTENANGO",4.0999999999999996,100]
["QUETZALTENANGO","SALCAJÁ",4.0999999999999996,100]
["QUETZALTENANGO","SAN_CARLOS_SIJA",4.0999999999999996,100]
["QUETZALTENANGO","SAN_FRANCISCO_LA_UNIÓN",4.0999999999999996,100]
["QUETZALTENANGO","SAN_JUAN_OSTUNCALCO",4.0999999999999996,100]
["QUETZALTENANGO","SAN_MARTÍN_SACATEPÉQUEZ",4.0999999999999996,100]
["QUETZALTENANGO","SAN_MATEO",4.0999999999999996,100]
["QUETZALTENANGO","SAN_MIGUEL_SIGÜILÁ",4.0999999999999996,100]
["QUETZALTENANGO","SIBILIA",4.0999999999999996,100]
["QUETZALTENANGO","ZUNIL",4.0999999999999996,100]
["QUICHE","CANILLÁ",4.0999999999999996,100]
["QUICHE","CHAJUL",4.0999999999999996,100]
["QUICHE","CHICAMÁN",4.0999999999999996,100]
["QUICHE","CHICHÉ",4.0999999999999996,100]
["QUICHE","CHICHICASTENANGO",4.0999999999999996,100]
["QUICHE","CHINIQUE",4.0999999999999996,100]
["QUICHE","CUNÉN",4.0999999999999996,100]
["QUICHE","IXCÁN",4.0999999999999996,100]
["QUICHE","JOYABAJ",4.0999999999999996,100]
["QUICHE","NEBAJ",4.0999999999999996,100]
["QUICHE","PACHALUM",4.0999999999999996,100]
["QUICHE","PATZITÉ",4.0999999999999996,100]
["QUICHE","SACAPULAS",4.0999999999999996,100]
["QUICHE","SAN_ANDRÉS_SAJCABAJÁ",4.0999999999999996,100]
["QUICHE","SAN_ANTONIO_ILOTENANGO",4.0999999999999996,100]
["QUICHE","SAN_BARTOLOMÉ_JOCOTENANGO",4.0999999999999996,100]
["QUICHE","SAN_JUAN_COTZAL",4.0999999999999996,100]
["QUICHE","SAN_PEDRO_JOCOPILAS",4.0999999999999996,100]
["QUICHE","SANTA_CRUZ_DEL_QUICHÉ",4.0999999999999996,100]
["QUICHE","USPANTÁN",4.0999999999999996,100]
["QUICHE","ZACUALPA",4.0999999999999996,100]
["RETALHULEU","CHAMPERICO",4.2,110]
["RETALHULEU","EL_ASINTAL",4.2,110]
["RETALHULEU","NUEVO_SAN_CARLOS",4.2,100]
["RETALHULEU","RETALHULEU",4.2,110]
["RETALHULEU","SAN_ANDRÉS_VILLA_SECA",4.2,110]
["RETALHULEU","SAN_FELIPE",4.2,100]
["RETALHULEU","SAN_MARTÍN_ZAPOTITLÁN",4.2,100]
["RETALHULEU","SAN_SEBASTIÁN",4.2,100]
["RETALHULEU","SANTA_CRUZ_MULUÁ",4.2,110]
["SACATEPÉQUEZ","ALOTENANGO",4.0999999999999996,100]
["SACATEPÉQUEZ","ANTIGUA_GUATEMALA",4.0999999999999996,100]
["SACATEPÉQUEZ","CIUDAD_VIEJA",4.0999999999999996,100]
["SACATEPÉQUEZ","JOCOTENANGO",4.0999999999999996,100]
["SACATEPÉQUEZ","MAGDALENA_MILPAS_ALTAS",4.0999999999999996,100]
["SACATEPÉQUEZ","PASTORES",4.0999999999999996,100]
["SACATEPÉQUEZ","SAN_ANTONIO_AGUAS_CALIENTES",4.0999999999999996,100]
["SACATEPÉQUEZ","SAN_BARTOLOMÉ_MILPAS_ALTAS",4.0999999999999996,100]
["SACATEPÉQUEZ","SAN_LUCAS_SACATEPÉQUEZ",4.0999999999999996,100]
["SACATEPÉQUEZ","SAN_MIGUEL_DUEÑAS",4.0999999999999996,100]
["SACATEPÉQUEZ","SANTA_CATARINA_BARAHONA",4.0999999999999996,100]
["SACATEPÉQUEZ","SANTA_LUCÍA_MILPAS_ALTAS",4.0999999999999996,100]
["SACATEPÉQUEZ","SANTA_MARÍA_DE_JESÚS",4.0999999999999996,100]
["SACATEPÉQUEZ","SANTIAGO_SACATEPÉQUEZ",4.0999999999999996,100]
["SACATEPÉQUEZ","SANTO_DOMINGO_XENACOJ",4.0999999999999996,100]
["SACATEPÉQUEZ","SUMPANGO",4.0999999999999996,100]
["SAN_MARCOS","AYUTLA",4.2,110]
["SAN_MARCOS","CATARINA",4.2,100]
["SAN_MARCOS","COMITANCILLO",4.0999999999999996,100]
["SAN_MARCOS","CONCEPCIÓN_TUTUAPA",4.0999999999999996,100]
["SAN_MARCOS","EL_QUETZAL",4.2,100]
["SAN_MARCOS","EL_RODEO",4.2,100]
["SAN_MARCOS","EL_TUMBADOR",4.2,100]
["SAN_MARCOS","ESQUIPULAS_PALO_GORDO",4.2,100]
["SAN_MARCOS","IXCHIGUÁN",4.0999999999999996,100]
["SAN_MARCOS","LA_BLANCA",4.2,110]
["SAN_MARCOS","LA_REFORMA",4.2,100]
["SAN_MARCOS","MALACATÁN",4.2,100]
["SAN_MARCOS","NUEVO_PROGRESO",4.2,100]
["SAN_MARCOS","OCÓS",4.2,110]
["SAN_MARCOS","PAJAPITA",4.0999999999999996,110]
["SAN_MARCOS","RÍO_BLANCO",4.0999999999999996,100]
["SAN_MARCOS","SAN_ANTONIO_SACATEPÉQUEZ",4.0999999999999996,100]
["SAN_MARCOS","SAN_CRISTÓBAL_CUCHO",4.0999999999999996,100]
["SAN_MARCOS","SAN_JOSÉ_OJETENAM",4.0999999999999996,100]
["SAN_MARCOS","SAN_LORENZO",4.0999999999999996,100]
["SAN_MARCOS","SAN_MARCOS",4.0999999999999996,100]
["SAN_MARCOS","SAN_MIGUEL_IXTAHUACÁN",4.0999999999999996,100]
["SAN_MARCOS","SAN_PABLO",4.0999999999999996,100]
["SAN_MARCOS","SAN_PEDRO_SACATEPÉQUEZ",4.2,100]
["SAN_MARCOS","SAN_RAFAEL_PIE_DE_LA_CUESTA",4.0999999999999996,100]
["SAN_MARCOS","SIBINAL",4.0999999999999996,100]
["SAN_MARCOS","SIPACAPA",4.0999999999999996,100]
["SAN_MARCOS","TACANÁ",4.0999999999999996,100]
["SAN_MARCOS","TAJUMULCO",4.0999999999999996,100]
["SAN_MARCOS","TEJUTLA",4.2,100]
["SANTA_ROSA","BARBERENA",4.0999999999999996,100]
["SANTA_ROSA","CASILLAS",4.0999999999999996,100]
["SANTA_ROSA","CHIQUIMULILLA",4.2,110]
["SANTA_ROSA","CUILAPA",4.0999999999999996,100]
["SANTA_ROSA","GUAZACAPÁN",4.2,110]
["SANTA_ROSA","NUEVA_SANTA_ROSA",4.0999999999999996,100]
["SANTA_ROSA","ORATORIO",4.2,100]
["SANTA_ROSA","PUEBLO_NUEVO_VIÑAS",4.2,100]
["SANTA_ROSA","SAN_JUAN_TECUACO",4.2,100]
["SANTA_ROSA","SAN_RAFAEL_LAS_FLORES",4.0999999999999996,100]
["SANTA_ROSA","SANTA_CRUZ_NARANJO",4.0999999999999996,100]
["SANTA_ROSA","SANTA_MARÍA_IXHUATÁN",4.2,100]
["SANTA_ROSA","SANTA_ROSA_DE_LIMA",4.0999999999999996,100]
["SANTA_ROSA","TAXISCO",4.2,110]
["SOLOLÁ","CONCEPCIÓN",4.0999999999999996,100]
["SOLOLÁ","NAHUALÁ",4.0999999999999996,100]
["SOLOLÁ","PANAJACHEL",4.0999999999999996,100]
["SOLOLÁ","SAN_ANDRÉS_SEMETABAJ",4.0999999999999996,100]
["SOLOLÁ","SAN_ANTONIO_PALOPÓ",4.0999999999999996,100]
["SOLOLÁ","SAN_JOSÉ_CHACAYÁ",4.0999999999999996,100]
["SOLOLÁ","SAN_JUAN_LA_LAGUNA",4.0999999999999996,100]
["SOLOLÁ","SAN_LUCAS_TOLIMÁN",4.0999999999999996,100]
["SOLOLÁ","SAN_MARCOS_LA_LAGUNA",4.0999999999999996,100]
["SOLOLÁ","SAN_PABLO_LA_LAGUNA",4.0999999999999996,100]
["SOLOLÁ","SAN_PEDRO_LA_LAGUNA",4.0999999999999996,100]
["SOLOLÁ","SANTA_CATARINA_IXTAHUACÁN",4.0999999999999996,100]
["SOLOLÁ","SANTA_CATARINA_PALOPÓ",4.0999999999999996,100]
["SOLOLÁ","SANTA_CLARA_LA_LAGUNA",4.0999999999999996,100]
["SOLOLÁ","SANTA_CRUZ_LA_LAGUNA",4.0999999999999996,100]
["SOLOLÁ","SANTA_LUCÍA_UTATLÁN",4.0999999999999996,100]
["SOLOLÁ","SANTA_MARÍA_VISITACIÓN",4.0999999999999996,100]
["SOLOLÁ","SANTIAGO_ATITLÁN",4.0999999999999996,100]
["SOLOLÁ","SOLOLÁ",4.0999999999999996,100]
["SUCHITÉPEQUEZ","CHICACAO",4.2,100]
["SUCHITÉPEQUEZ","CUYOTENANGO",4.2,110]
["SUCHITÉPEQUEZ","MAZATENANGO",4.2,100]
["SUCHITÉPEQUEZ","PATULUL",4.2,100]
["SUCHITÉPEQUEZ","PUEBLO_NUEVO",4.2,100]
["SUCHITÉPEQUEZ","RÍO_BRAVO",4.2,100]
["SUCHITÉPEQUEZ","SAMAYAC",4.2,100]
["SUCHITÉPEQUEZ","SAN_ANTONIO_SUCHITÉPEQUEZ",4.2,100]
["SUCHITÉPEQUEZ","SAN_BERNARDINO",4.2,100]
["SUCHITÉPEQUEZ","SAN_FRANCISCO_ZAPOTITLÁN",4.2,100]
["SUCHITÉPEQUEZ","SAN_GABRIEL",4.2,100]
["SUCHITÉPEQUEZ","SAN_JOSÉ_EL_ÍDOLO",4.2,100]
["SUCHITÉPEQUEZ","SAN_JOSÉ_LA_MÁQUINA",4.2,110]
["SUCHITÉPEQUEZ","SAN_JUAN_BAUTISTA",4.2,100]
["SUCHITÉPEQUEZ","SAN_LORENZO",4.2,110]
["SUCHITÉPEQUEZ","SAN_MIGUEL_PANÁN",4.2,100]
["SUCHITÉPEQUEZ","SAN_PABLO_JOCOPILAS",4.2,100]
["SUCHITÉPEQUEZ","SANTA_BÁRBARA",4.2,100]
["SUCHITÉPEQUEZ","SANTO_DOMINGO_SUCHITÉPEQUEZ",4.2,110]
["SUCHITÉPEQUEZ","SANTO_TOMÁS_LA_UNIÓN",4.2,100]
["SUCHITÉPEQUEZ","ZUNILITO",4.2,100]
["TOTONICAPAN","MOMOSTENANGO",4.0999999999999996,100]
["TOTONICAPAN","SAN_ANDRÉS_XECUL",4.0999999999999996,100]
["TOTONICAPAN","SAN_BARTOLO_AGUAS_CALIENTES",4.0999999999999996,100]
["TOTONICAPAN","SAN_CRISTÓBAL_TOTONICAPÁN",4.0999999999999996,100]
["TOTONICAPAN","SAN_FRANCISCO_EL_ALTO",4.0999999999999996,100]
["TOTONICAPAN","SANTA_LUCÍA_LA_REFORMA",4.0999999999999996,100]
["TOTONICAPAN","SANTA_MARÍA_CHIQUIMULA",4.0999999999999996,100]
["TOTONICAPAN","TOTONICAPÁN",4.0999999999999996,100]
["ZACAPA","CABAÑAS",4.0999999999999996,100]
["ZACAPA","ESTANZUELA",4.0999999999999996,100]
["ZACAPA","GUALÁN",4.0999999999999996,100]
["ZACAPA","HUITÉ",4.0999999999999996,100]
["ZACAPA","LA_UNIÓN",4.0999999999999996,100]
["ZACAPA","RÍO_HONDO",4.0999999999999996,100]
["ZACAPA","SAN_DIEGO",4.0999999999999996,100]
["ZACAPA","SAN_JORGE",4.0999999999999996,100]
["ZACAPA","TECULUTÁN",4.0999999999999996,100]
["ZACAPA","USUMATLÁN",4.0999999999999996,100]
["ZACAPA","ZACAPA",4.0999999999999996,100]

{"sheet":"tablas exposicion","index":4,"n_rows":156,"n_cols":7,"rows_kept":156,"cut":false,"hidden":true,"merged":[[65,1,65,6],[149,3,149,6],[117,1,118,6],[119,1,119,6],[120,3,120,6],[146,1,147,6],[148,1,148,6],[4,14,10,16],[97,3,97,6],[94,1,95,6],[0,1,1,6],[13,1,14,6],[3,3,3,6],[15,1,15,6],[16,3,16,6],[2,1,2,6],[96,1,96,6],[10,8,10,9],[66,3,66,6],[34,1,35,6],[36,1,36,6],[37,3,37,6],[63,1,64,6]]}
[null,"SISMICIDAD (EJEMPLO)"]
[]
[null,"RELACION FRECUENCIA E INTENSIDAD"]
[null,null,null,"EXPOSICION"]
[null,null,null,"BAJA","MEDIA","ALTA","MUY ALTA"]
[null,"AMENAZA F/I",null,1,2,3,4]
[null,"BAJA",1,"BAJA","BAJA","BAJA","ALTA"]
[null,"MEDIA",2,"MEDIA","MEDIA","MEDIA","ALTA"]
[null,"ALTA",3,"ALTA","ALTA","ALTA","MUY ALTA"]
[null,"MUY ALTA",4,"MUY ALTA","MUY ALTA","MUY ALTA","MUY ALTA"]
[]
[]
[]
[null,"VULCANISMO (EJEMPLO)"]
[]
[null,"RELACION FRECUENCIA E INTENSIDAD / VULNERABILIDAD POR EXPOSICION"]
[null,null,null,"EXPOSICION"]
[null,null,null,"BAJA","MEDIA","ALTA","MUY ALTA"]
[null,"AMENAZA F/I",null,1,2,3,4]
[null,"BAJA",1,"BAJA","BAJA","MEDIA","ALTA"]
[null,"MEDIA",2,"MEDIA","MEDIA","ALTA","MUY ALTA"]
[null,"ALTA",3,"MEDIA","ALTA","MUY ALTA","MUY ALTA"]
[null,"MUY ALTA",4,"MUY ALTA","MUY ALTA","MUY ALTA","MUY ALTA"]
[]
[]
[]
[]
[]
[]
[]
[]
[]
[]
[]
[null,"INUNDACION (EJEMPLO)"]
[]
[null,"RELACION FRECUENCIA E INTENSIDAD / VULNERABILIDAD POR EXPOSICION"]
[null,null,null,"EXPOSICION"]
[null,null,null,"BAJA","MEDIA","ALTA","MUY ALTA"]
[null,"AMENAZA F/I",null,1,2,3,4]
[null,"BAJA",1,"BAJA","BAJA","MEDIA","ALTA"]
[null,"MEDIA",2,"BAJA","MEDIA","ALTA","ALTA"]
[null,"ALTA",3,"BAJA","MEDIA","ALTA","MUY ALTA"]
[null,"MUY ALTA",4,"ALTA","ALTA","MUY ALTA","MUY ALTA"]
[]
[]
[]
[]
[]
[]
[]
[]
[]
[]
[]
[]
[]
[]
[]
[]
[]
[]
[]
[null,"DESLIZAMIENTOS (EJEMPLO)"]
[]
[null,"RELACION FRECUENCIA E INTENSIDAD / VULNERABILIDAD POR EXPOSICION"]
[null,null,null,"EXPOSICION"]
[null,null,null,"BAJA","MEDIA","ALTA","MUY ALTA"]
[null,"AMENAZA F/I",null,1,2,3,4]
[null,"BAJA",1,"BAJA","BAJA","MEDIA","ALTA"]
[null,"MEDIA",2,"BAJA","MEDIA","MEDIA","MUY ALTA"]
[null,"ALTA",3,"BAJA","MEDIA","ALTA","MUY ALTA"]
[null,"MUY ALTA",4,"BAJA","ALTA","ALTA","MUY ALTA"]
[]
[]
[]
[]
[]
[]
[]
[]
[]
[]
[]
[]
[]
[]
[]
[]
[]
[]
[]
[]
[]
[null,"HURACANES (ejemplo)"]
[]
[null,"RELACION FRECUENCIA E INTENSIDAD / VULNERABILIDAD POR EXPOSICION"]
[null,null,null,"EXPOSICION"]
[null,null,null,"BAJA","MEDIA","ALTA","MUY ALTA"]
[null,"AMENAZA F/I",null,1,2,3,4]
[null,"BAJA",1,"BAJA","BAJA","MEDIA","MUY ALTA"]
[null,"MEDIA",2,"BAJA","MEDIA","ALTA","MUY ALTA"]
[null,"ALTA",3,"MEDIA","ALTA","MUY ALTA","MUY ALTA"]
[null,"MUY ALTA",4,"ALTA","ALTA","MUY ALTA","MUY ALTA"]
[]
[]
[]
[]
[]
[]
[]
[]
[]
[]
[]
[]
[]
[null,"VIENTOS (EJEMPLO)"]
[]
[null,"RELACION FRECUENCIA E INTENSIDAD / VULNERABILIDAD POR EXPOSICION"]
[null,null,null,"EXPOSICION"]
[null,null,null,"BAJA","MEDIA","ALTA","MUY ALTA"]
[null,"AMENAZA F/I",null,1,2,3,4]
[null,"BAJA",1,"BAJA","BAJA","BAJA","BAJA"]
[null,"MEDIA",2,"BAJA","BAJA","MEDIA","MEDIA"]
[null,"ALTA",3,"BAJA","MEDIA","ALTA","ALTA"]
[null,"MUY ALTA",4,"ALTA","ALTA","MUY ALTA","MUY ALTA"]
[]
[]
[]
[]
[]
[]
[]
[]
[]
[]
[]
[]
[]
[]
[]
[]
[]
[]
[]
[null,"OTRAS (EJEMPLO)"]
[]
[null,"RELACION FRECUENCIA E INTENSIDAD / VULNERABILIDAD POR EXPOSICION"]
[null,null,null,"EXPOSICION"]
[null,null,null,"BAJA","MEDIA","ALTA","MUY ALTA"]
[null,"AMENAZA F/I",null,1,2,3,4]
[null,"BAJA",1,"BAJA","BAJA","MEDIA","ALTA"]
[null,"MEDIA",2,"BAJA","MEDIA","ALTA","MUY ALTA"]
[null,"ALTA",3,"MEDIA","ALTA","ALTA","MUY ALTA"]
[null,"MUY ALTA",4,"MUY ALTA","MUY ALTA","MUY ALTA","MUY ALTA"]

{"sheet":"DATOS GENERALES","index":5,"n_rows":40,"n_cols":5,"rows_kept":40,"cut":false,"hidden":true,"merged":[[2,0,2,1],[6,0,6,1],[8,0,8,1],[0,0,0,3],[26,0,26,1],[24,0,24,1],[22,0,22,1],[4,0,4,1],[11,0,11,1],[3,0,3,1],[28,0,28,1],[19,0,20,0],[17,0,17,1],[15,0,15,1],[13,0,13,1],[37,0,37,1],[38,0,38,1],[39,0,39,1],[30,0,30,1],[32,0,32,1],[34,0,34,1],[35,0,35,1],[36,0,36,1]]}
["MODULO No. 1 :  DATOS GENERALES DEL PROYECTO"]
[]
["NOMBRE Y TIPO DEL PROYECTO",null,"slsadlsñadñlsadklñsadk"]
["SNIP",null,21020139213]
["BREVE DESCRIPCION DEL PROYECTO",null,"asdñllasdññlasdkñ|",null," "]
[]
["INVERSION PROGRAMADA"]
[]
["UNIDAD EJECUTORA",null,"DKLSDKÑASDKSADKL"]
[]
[]
["REGION",null,{"$f":"Buscardatos!H2","v":"I"}]
[]
["DEPARTAMENTO",null,{"$f":"+Buscardatos!I3","v":"GUATEMALA"}]
[]
["MUNICIPIO",null,{"$f":"+Buscardatos!J3","v":"SANTA_CATARINA_PINULA"}]
[]
["LUGAR POBLADO",null,"AAS"]
[]
["COORDENADAS GTM","X",18]
[null,"Y",0]
[]
["NIVEL DEL ESTUDIO"]
[]
["FECHA DEL ANALISIS DE RIESGO",null,"00:00:00"]
[]
["FORMULADOR DEL ANALISIS DE RIESGO",null,"ASDSDASDASDA"]
[]
["CARGO",null,"QDASSDASDAQ"]
[]
["INSTITUCION",null,"SDASDASDASDA"]
[]
["PROFESION",null,"QASDASDSDA"]
[]
["No. COLEGIADO",null,11111]
[]
["NOMBRE ENCARGADO",null,"ASDSDASDADSA"]
["DPI ENCARGADO",null,1234567890123]
["NOMBRE AVAL",null,"DSDADAS"]
["DPI AVAL",null,1234567890123]

{"sheet":"PROBABILIDAD_DAÑO","index":6,"n_rows":58,"n_cols":6,"rows_kept":58,"cut":false,"hidden":true,"merged":[[24,8,24,13],[26,0,26,3],[27,0,27,3],[34,0,34,3],[35,0,35,3],[26,4,27,5],[34,4,35,5],[1,4,2,5],[10,4,11,5],[43,0,43,3],[51,0,51,3],[1,0,1,3],[2,0,2,3],[42,4,43,5],[51,4,52,5],[52,0,52,3],[42,0,42,3],[10,0,10,3],[11,0,11,3],[18,0,18,3],[19,0,19,3],[18,4,19,5]]}
[]
["CRITERIOS PARA DETERMINAR LA PROBABILIDAD DEL NIVEL DE INTENSIDAD DE ZONA SÍSMICA",null,null,null,"PROBABILIDAD DE DAÑO SEGÚN EL NIVEL DE EXPOSICIÓN AMENAZA SISMICA"]
["TABLA No. 1\nPONDERACIÓN DEL FACTOR DE INTENSIDAD EN SISMOS"]
["INTENSIDAD","CRITERIO",null,"NIVEL","DAÑO PROBABLE","RECOMENDACIÓN ????"]
[]
[1,">  El sitio se encuentra ubicado dentro de los índices de sismicidad; 2.1, 2.2 ;        \n     según la NSE2-10 de AGIES. \n",null,"BAJA","> Según la escala de mercalli EMM(I-III) \n> De muy débil a leve, \n> Objetos colgantes oscilan, \n> Oscilación de edificios, \n> No provoca daños considerables","A NIVEL NACIONAL SE RECOMIENDA CONSULTAR: \n\n> NORMATIVA NSE-2-2018 (modificada 2020) de AGIES, con el objetivo de calcular y según el índice de sismicidad del sitio, el diseño de acuerdo a la ordenada espectral de período corto y la ordenada espectral con período de 1 segundo.\n> NORMATIVA NSE-2.1-18 (modificada 2020),de AGIES relacionada a los estudios geotécnicos.\n> NORMATIVA NSE-1, 2018 (modificada 2020) de AGIES, relacionada a generalidades, administración de las normas y supervisión técnica.\n> Así como las demás NORMAS NSE de AGIES relacionadas al diseño de los proyectos."]
[2,">  El sitio se encuentra ubicado dentro de los índices de sismicidad; 3.1, 3.2 ;     \n    según la NSE2-10 de AGIES. \n",null,"MEDIA","> De moderado a fuerte, \n> EMM(IV-VI), \n> Perturbación en pisos, puertas y ventanas, \n> Daños leves a infraestructura.","A NIVEL NACIONAL SE RECOMIENDA CONSULTAR: \n\n> NORMATIVA NSE-2-2018 (modificada 2020) de AGIES, con el objetivo de calcular y según el índice de sismicidad del sitio, el diseño de acuerdo a la ordenada espectral de período corto y la ordenada espectral con período de 1 segundo.\n> NORMATIVA NSE-2.1-18 (modificada 2020),de AGIES relacionada a los estudios geotécnicos.\n> NORMATIVA NSE-1, 2018 (modificada 2020) de AGIES, relacionada a generalidades, administración de las normas y supervisión técnica.\n> Así como las demás NORMAS NSE de AGIES relacionadas al diseño de los proyectos."]
[3,"> El sitio se encuentra ubicado dentro de los índices de sismicidad; 4.1; \n    según la NSE2-10 de AGIES. \n",null,"ALTA","> Muy fuerte a destructivo EMM (VII-IX), \n> Daños considerables en estructuras especializadas, paredes fuera de plomo. \n> Grandes daños en importantes edificios, con colapsos parciales.\n> Edificios desplazados fuera de las bases.","A NIVEL NACIONAL SE RECOMIENDA CONSULTAR: \n\n> NORMATIVA NSE-2-2018 (modificada 2020) de AGIES, con el objetivo de calcular y segun el índice de sismicidad del sitio, el diseño de acuerdo a la ordenada espectral de período corto y la ordenada espectral con período de 1 segundo.\n> NORMATIVA NSE-2.1-18 (modificada 2020),de AGIES relacionada a los estudios geotécnicos.\n> NORMATIVA NSE-1, 2018 (modificada 2020) de AGIES,  relacionada a generalidades, administración de las normas y supervisión técnica.\n> Así como las demás NORMAS NSE de AGIES relacionadas al diseño de los proyectos."]
[4,">  El sitio se encuentra ubicado dentro de los índices de sismicidad; 4.2, 4.3;    \n     según la NSE2-10 de AGIES.\n",null,"MUY ALTA","> Desastroso a catastrófico EMM ( X-XII), \n> Pocas estructuras de mampostería permanecen en pie. \n> Destrucción de algunas estructuras de madera bien construidas. \n> Rieles doblados","A NIVEL NACIONAL SE RECOMIENDA CONSULTAR: \n\n> NORMATIVA NSE-2-2018 (modificada 2020) de AGIES, con el objetivo de calcular y según el índice de sismicidad del sitio, el diseño de acuerdo a la ordenada espectral de período corto y la ordenada espectral con período de 1 segundo.\n> NORMATIVA NSE-2.1-18 (modificada 2020),de AGIES relacionada a los estudios geotécnicos.\n> NORMATIVA NSE-1, 2018 (modificada 2020) de AGIES, relacionada a generalidades, administración de las normas y supervisión técnica.\n> Así como las demás NORMAS NSE de AGIES relacionadas al diseño de los proyectos."]
[]
["CRITERIOS PARA DETERMINAR LA PROBABILIDAD DEL NIVEL DE INTENSIDAD DE AMENAZA VOLCANICA",null,null,null,"PROBABILIDAD DE DAÑO SEGÚN EL NIVEL DE EXPOSICIÓN AMENAZA VOLCÁNICA"]
["TABLA No. 2\nPONDERACIÓN DEL FACTOR DE INTENSIDAD EN VULCANISMO"]
["INTENSIDAD","CRITERIO",null,"NIVEL","DAÑO PROBABLE","RECOMENDACIÓN ????"]
[1,"> Distancia del sitio del proyecto en relacion a un edificio volcánico \n    mayor de 50 km\n> Eventualmente caída de ceniza  (medio centímetro o menos de espesor de    \n   lámina)\n",null,"BAJA","> Baja probabilidad de daños a la infraestructura, dependiendo de la amenaza volcánica presente.\n> Probabilidad de la caída de tefra (arena), la cual puede ser expulsada por el edificio volcánico a grandes distancias.","> En construcciones que están sujetas a amenazas volcánicas se deberán observar las normas AGIES NS-2-2018, que se rerieren al diseño. Considerar lo relacionado a los aspectos volcánicos. \n> Observar la NORMA NSE-2.1-18 (modificada 2020), de AGIES  respecto a los estudios geotécnicos."]
[2,">  Distancia del sitio del proyecto en relacion a un edificio volcánico \n     de aproximadamente 30 km\n>   Eventualmente caida de TEFRA arena volcánica   (un centímetro  de espesor de \n     lámina)  \n>   Actividad volcánica baja ",null,"MEDIA","> Probabilidad de daños en la infraestructura proyectada se puede considerar leve, sin embargo, tomar en cuenta la caída de tefra  (arena), que puede ocasionar daños a la infraestructura de techos y proyectos de cielo abierto (plantas de tratamiento, etc.) "," > En construcciones que están sujetas a amenazas volcánicas se deberán observar las normas AGIES NS-2-2018, que se rerieren al diseño. Considerar lo relacionado a los aspectos  volcánicos. \n> Observar la NORMA NSE-2.1-18 (modificada 2020), de AGIES   respecto a los estudios geotécnicos.\n> Se recomienda sensibilizar a la poblacion, de la existencia  de amenaza volcánicas moderadas para que apliquen las  medidas preventivas y correctivas para la preservación de  la infraestructura."]
[3,">  Distancia del sitio del proyecto en relacion a un edificio volcánico \n     de menos de 30 km\n>   Antecedentes de actividad volcánica\n>   Historial de caida de TEFRA (arena volcánica de  más de un centímetro  \n      de espesor de lámina)  \n>   El sitio del proyecto se encuentra ubicado  cerca de quebradas \n      que surgen el edificio volcánico.",null,"ALTA","> Probabilidad de daños a las infraestructuras, se espera que no exista una destrucción repentina lo cual dependerá de los aspectos contructivos que estén adaptados a las condiciones del sitio.","> En construcciones que están sujetas a amenazas volcánicas  se deberán observar las normas AGIES NS-2-2018,  que se rerieren al diseño, considerar lo relacionado a los aspectos volcánicos; así como la NORMA NSE-2.1-18 (modificada 2020), de AGIES   respecto a los estudios geotécnicos. \n> Se recomienda sensibilización a la población de la \nexistencia de amenaza volcánica moderadas para que apliquen las medidas preventivas y correctivas, para la preservación de la infraestructura.\n> Se recomienda realizar un análisis más profundo para la construcción de la obra."]
[4,"> Distancia de la obra proyectada en relacion a un edificio volcánico \n    de 20 km o menos)\n> Con historial de frecuente actividad volcánica \n> Caida frecuente de TEFRA arena volcánica, lapilli y supera los tres centímetros   \n    de espesor\n> Tamaño de la TEFRA volcánica supera los 10 milímetros.\n> Historial de flujos de lava, lahares, flujos piroclásticos en las cercanías del \n    sitio del proyecto.\n> El sitio del proyecto se encuentra ubicado en quebradas que surgen \n    del edificio volcánico.",null,"MUY ALTA","> Existe una alta probabilidad de destrucción total y repentina de  la infraestructura (vivendas y edificios), así como áreas de cultivo.","> Se recomienda la búsqueda de un nuevo sitio para la construcción del proyecto, dada la posibilidad de alta peligrosidad para la infraestructura y sus usuarios."]
[]
[" CRITERIOS PARA DETERMINAR LA PROBABILIDAD DEL NIVEL DE INTENSIDAD EN INUNDACIONES",null,null,null,"PROBABILIDAD DE DAÑO SEGÚN EL NIVEL DE EXPOSICIÓN AMENAZA INUNDACIONES"]
["TABLA No 3\nPONDERACIÓN DEL FACTOR DE INTENSIDAD EN INUNDACIONES"]
["INTENSIDAD","CRITERIO",null,"NIVEL","DAÑO PROBABLE","RECOMENDACIÓN ????"]
[1,"> No existen antecedentes de inundación, o cuando se dan entre 0 a 0.6 m de altura\n> No hay interrupción de los servicios\n> No existen ríos o cuerpos de agua cercanos\n> Sitio del proyecto en terreno elevado",null,"BAJA","> Probabilidad de daños no significativos.","> En todos los casos se recomienda el uso de la normativa NSE-2-2018 (diseño estructural de edificaciones);  especificado en el capítulo 10 (condiciones del terreno).\n> Se recomienda utilizar la NORMATIVA NSE-2.1-18 \n(modificada 2020),de AGIES  (estudios geotécnicos),  especialmente el capítulo 4 (caracterización geotécnica del subsuelo)."]
[2,"> Con antecedentes históricos de ocurrencia de inundaciones eventuales.\n> Tirante de la inundación  0.6 a 1 m de altura\n> El espejo de agua producto de la inundación a durado más de 24 horas.\n> Daños moderados a la infraestructura \n> Afecta el tránsito de vehículos\n> No hay interrupción de los servicios",null,"MEDIA","> Probabilidad de daños moderados, pueden afectar la circulación vehicular","> Se recomienda tomar las medidas de mitigación y \n    resiliencia para los proyectos de infraestructura pública  especialmente en los proyectos viales.\n> En todos los casos se recomienda el uso de la normativa NSE-2-2018 (diseño estructural de edificaciones); especificado en el capítulo 10 (condiciones del terreno).\n> Se recomienda utilizar la NORMATIVA NSE-2.1-18 (modificada 2020), de AGIES  (estudios geotécnicos), especialmente el capítulo 4 (caracterización geotécnica del subsuelo)."]
[3,"> El tirante de la inundación alcanza entre  1  y 3.5 m de altura.\n> Colapso parcial de la infraestructura \n> Pérdidas considerables.\n> Interrupción parcial de los servicios \n> Afecta el tránsito de las personas",null,"ALTA","> Pérdidas considerables ","> El proyecto deberá llevar medidas de mitigación por ser zona inundable que puede causar daños considerables, se sugiere la búsqueda de un nuevo sitio.\n> En todos los casos se recomienda el uso de la normativa NSE-2-2018 (diseño estructural de edificaciones);  especificado en el capítulo 10 (condiciones del terreno).\n> Se recomienda utilizar la NORMATIVA NSE-2.1-18 \n(modificada 2020), de AGIES  (estudios geotécnicos),  especialmente el capítulo 4 (caracterización geotécnica del subsuelo)."]
[4,"> El tirante de la inundación alcanza mas de 3.5 mts.  de altura.\n> Cuando sucede se sumerge el primer piso del edificio. \n> Peligro de vidas humanas.\n> Interrupción de servicios,",null,"MUY ALTA","> Edificaciones inundadas, destrucción de carreteras, puentes, edificios y viviendas.\n> Viviendas y edificios sumergidos\n> Daños considerables.","> Por ser una zona de muy alto peligro para las inundaciones, y con el fin de preservar la infraestructura y la seguridad de los usuarios, se hace imprescindible las medidas de mitigación. o en su caso la búsqueda de un nuevo sitio para el proyecto.\n> En todos los casos se recomienda el uso de la normativa NSE-2-2018 (diseño estructural de edificaciones);  especificado en el capítulo 10 (condiciones del terreno).\n> Se recomienda utilizar la NORMATIVA NSE-2.1-18 \n(modificada 2020), de AGIES  (estudios geotécnicos), especialmente el capítulo 4 (caracterización geotécnica del subsuelo)."]
[]
["CRITERIOS PARA DETERMINAR LA PROBABILIDAD DEL NIVEL DE INTENSIDAD EN DESLIZAMIENTOS",null,null,null,"PROBABILIDAD DE DAÑO SEGÚN EL NIVEL DE EXPOSICIÓN AMENAZA DESLIZAMIENTOS"]
["TABLA No. 4\nPONDERACIÓN DEL FACTOR DE INTENSIDAD EN DESLIZAMIENTOS"]
["INTENSIDAD","CRITERIO",null,"NIVEL","DAÑO PROBABLE","RECOMENDACIÓN ????"]
[1,"> No existe historial de deslizamientos\n> Terreno clase I, plano o con pendiente de 0 a 12 % \n> Tipo de suelo, compacto y/o rocoso\n> Existe vegetación forestal\n> No se observan mantos freáticos\n> La distancia de la cresta al proyecto es de 500 m o más \n> No existen fracturas o grietas que puedan afectar el sitio del proyecto\n\n\n",null,"BAJA","> Se considera que no habrán daños significativos por esta amenaza y/o son de baja intensidad.","> En todos los casos se recomienda la utilización de la  NORMATIVA NSE-2.1-18 (modificada 2020), de AGIES especificamente consultar: capítulo 4 (caracterización geotécnica del subsuelo); capítulo 5 (cimentación); capítulo 7 (estabilidad de laderas y taludes).\n> En todos los casos se recomienda la utilización de la normativa NSE-2-2018 de AGIES, capítulo 10 (condiciones de terreno)"]
[2,"> No existe historial de deslizamientos\n> Terreno clase II, con pendientes aproximadamente de 12 a 25 %\n> Tipo de suelo poroso y/o con dendritas\n> No existe cobertura vegetal\n> Se observan mantos freáticos\n> La distancia de la cresta al proyecto es de 400 a 300 m\n> Zonas probables de deslizamiento según mapas de CONRED\n> Fracturas o grietas orientadas al sitio del proyecto\n",null,"MEDIA","> Por el % de pendiente, y las condiciones del terreno, existe la probabilidad de la ocurrencia de deslizamientos.","> El proyecto debe considerar medidas de mitigación de acuerdo a las características del terreno y obra.\n> En todos los casos se recomienda la utilización de \n    la NORMATIVA NSE-2.1-18 (modificada 2020), de AGIES, específicamente consultar: capítulo 4 (caracterización geotécnica del subsuelo); capítulo 5 (cimentación); capítulo 7 (estabilidad de laderas y taludes).\n> En todos los casos se recomienda la utilización de la normativa NSE-2-2018 de AGIES, capítulo 10 (condiciones de terreno)"]
[3,"> Existe historia de deslizamientos\n> Terreno clase III, con pendientes aproximadamente de 25 a 50 %\n> Tipo de suelo suelto poroso y/o con dendritas\n> No existe cobertura vegetal\n> Se observan mantos freáticos\n> La distancia de la cresta al proyecto es de 300 a 200 m\n> Zonas probables de deslizamiento según mapas de CONRED\n> Fracturas o grietas están orientadas al sitio del proyecto\n\n\n",null,"ALTA","> Por las condicionantes del terreno y el grado de pendiente, la  probabilidad de que ocurran deslizamientos es alta, por lo que pueden ocasionar daños a la infraestructura.","> El proyecto debe considerar medidas de mitigación de acuerdo a las caracteristicas del terreno y obra.\n> En todos los casos se recomienda la utilización de la NORMATIVA NSE-2.1-18 (modificada 2020), de AGIES, específicamente consultar: capítulo 4 (caracterización geotécnica del subsuelo; capítulo 5 (cimentación); capítulo 7 (estabilidad de laderas y taludes).\n> En todos los casos se recomienda la utilización de la normativa NSE-2-2018 de AGIES, capítulo 10 (condiciones de terreno)"]
[4,"> Existe historial de constantes deslizamientos\n> Terreno clase IV, con pendientes aproximadamente de 50% o más\n> Tipo de suelo suelto poroso y/o con dendritas\n> No existe cobertura vegetal\n> Se observan mantos freáticos/ falta de canalización de aguas negras y \n   pluviales\n> La distancia de la cresta al proyecto es de 200 m o menos\n> Zonas probables de alto riesgo de deslizamiento según mapas de CONRED\n> Las fracturas o grietas están orientadas al sitio del proyecto\n\n",null,"MUY ALTA","> Por las condicionantes del terreno y el grado de pendiente, se considera una zona altamente peligrosa para el proyecto,  pudiendo ocasionar daños graves o destrucción total del mismo","> El proyecto debe considerar medidas de mitigación de acuerdo a las características del terreno y obra\n> Se debe considerar la búsqueda de un nuevo sitio para el  proyecto.\n> En todos los casos se recomienda la utilización de la NORMATIVA NSE-2.1-18 (modificada 2020), de AGIES, específicamente consultar: capítulo 4 (caracterización geotécnica del subsuelo); capítulo 5 (cimentación); capítulo  7 (estabilidad de laderas y taludes).\n> En todos los casos se recomienda la utilización de la normativa NSE-2-2018 de AGIES, capítulo 10 (condiciones de terreno)"]
[]
[" CRITERIOS PARA DETERMINAR LA PROBABILIDAD DEL NIVEL DE INTENSIDAD \nEN VIENTOS FUERTES (Escala de Beaufort)",null,null,null,"PROBABILIDAD DE DAÑO SEGÚN EL NIVEL DE EXPOSICIÓN AMENAZA VIENTOS FUERTES"]
["TABLA No. 5\nPONDERACIÓN DEL FACTOR DE INTENSIDAD EN DESLIZAMIENTOS"]
["INTENSIDAD","CRITERIO",null,"NIVEL","DAÑO PROBABLE","RECOMENDACIÓN ????"]
[1,"> Velocidades de 2 a 19 km/h\n> El humo indica la dirección del viento (inclinado a casi horizontal)",null,"BAJA","> Probabilidad de daños leves.\n","> Se recomienda observar las recomendaciones de la normativa NSE-2-18 de AGIES, relacionadas a la amenaza; especificadas en el capítulo 5 (acciones del viento)."]
[2,"> Velocidades de 20 a 45 km/h\n> Los vientos doblan ramas, pequeños movimientos de los árboles \n> Superficie de los lagos y mares ondulada, olas largas, marejada. ",null,"MEDIA","> Los daños a la infraestructura se consideran bajos y que no afectan la operatividad de la misma.\n","> Observar las recomendaciones de la normativa NSE-2-18 de AGIES, relacionadas a la amenaza; especificadas en el capítulo 5 (acciones del viento)."]
[3,"> Velocidades de 46 a 75 km/h\n> Se quiebran las copas de los árboles, circulación de personas dificultosa \n    (caminar inclinado, dificil caminar).\n>  En el mar vuela espuma, rompen olas.",null,"ALTA","> Daños de importancia a la infraestructura.\n","> Considerar las medidas de mitigación, dependiendo del  tipo de infraestructura.\n> Observar las recomendaciones de la normativa NSE-2-18 de AGIES, relacionadas a la amenaza; especificadas en el capítulo 5 (acciones del viento)."]
[4,"> Velocidades de 76 a +100 km/h\n> Árboles arrancados, daños en la estructura de las construcciones\n> En en mar olas gigantes, Espuma blanca",null,"MUY ALTA","> Daños severos a la infraestructura.\n","> Se deberán incluir medidas de mitigación, dependiendo del tipo de infraestructura.\n> Observar las recomendaciones de la normativa NSE-2-18 de AGIES, relacionadas a la amenaza; especificadas en el capítulo 5 (acciones del viento)."]
[]
[" CRITERIOS PARA DETERMINAR LA PROBABILIDAD DEL NIVEL DE INTENSIDAD \nDE HURACANES",null,null,null,"PROBABILIDAD DE DAÑO SEGÚN EL NIVEL DE EXPOSICIÓN AMENAZA HURACANES"]
["TABLA No. 6\nPONDERACIÓN DEL FACTOR DE INTENSIDAD EN HURACANES"]
["INTENSIDAD","CRITERIO",null,"NIVEL","DAÑO PROBABLE","RECOMENDACIÓN ????"]
[1,"> Rango de velocidad de los vientos de 119 - 153 km/h (saffir-simpson)\n> Las hojas de los árboles se agitan constantemente, Se despliegan las banderas, \n    (beuafort)\n> Profundidad de calado o tirante de inundación 0 -0.6 m (bangladesh)",null,"BAJA","> Sin daños en las estructuras de los edificios. \n> Daños básicamente en arbustos y árboles. \n> Inundaciones en zonas costeras.\n> Casas de madera podrían sufrir daños.","> Observar las recomendaciones de la norma NSE-2-2018 (modificada 2020) de AGIES, capítulo No. 5. relacionadas al viento y capítulo No. 10,  relacionado a condiciones de terreno, el subcapítulo 10.2.5 que se refiere a zonas inundables y erosionables.\n> Así como las demás NORMAS NSE de AGIES, relacionadas al diseño de los proyectos."]
[2,"> Rango de velocidad de los vientos de 154 - 177 km/h (saffir-simpson)\n> Se mueven las ramas grandes de los árboles  \n> Se utilizan con dificultad los paraguas. (beaufort)\n> Profundidad de calado o tirante inundación 0 - 0.6 -1.00 m (bangladesh)",null,"MEDIA","> Daños en techos, puertas y ventanas de estructuras pequeñas. \n> Importantes daños en la vegetación. \n> Posibilidad de inundaciones tierra adentro.\n> Letreros, toldos, cercas sufrirán daño.\n> El daño potencial en propiedades es moderado y afecta el \n    tránsito de vehículos.","> Observar las recomendaciones de la norma NSE-2-2018 (modificada 2020) de AGIES, capítulo No. 5. relacionadas al viento y capítulo No. 10,  relacionado a condiciones de  terreno, el subcapítulo 10.2.5 que se refiere a zonas inundables y erosionables.\n> Así como las demás NORMAS NSE de AGIES, relacionadas al diseño de los proyectos."]
[3,"> Rango de velocidad de los vientos de 178 - 208 km/h (saffir-simpson)\n> Se observa rara vez. Arranca árboles y ocasiona daños de consideración en los \n    edificios; Ocurren desperfectos en las partes salientes de los edificios, \n    levantando tejados.  (beaufort)\n> Profundidad de calado o tirante inundación 1 -3.5 m (bangladesh)",null,"ALTA","> Pueden ocasionar daños en algunas estructuras de edificios. \n> Las inundaciones destruyen edificaciones pequeñas.  \n> Inundaciones tierra adentro.\n> Árboles levantados y quebrados.\n> Bloqueo de caminos por escombros.\n> Cortes y apagones temporales de electricidad.","> Observar las recomendaciones de la norma NSE-2-2018 (modificada 2020) de AGIES, capítulo No. 5. relacionadas al  viento y capítulo No. 10,  relacionado a condiciones de terreno, el subcapítulo 10.2.5 que se refiere a zonas inundables y erosionables.\n> Así como las demás NORMAS NSE de AGIES, relacionadas al diseño de los proyectos."]
[4,"> Rango de velocidad de los vientos > 209 km/h (saffir-simpson)\n> Observada muy rara vez. Ocasiona destrozos en todas partes; Arranca árboles \n   y ocasiona daños de consideración en los edificios. (beaufort)\n> Profundidad de calado o tirante inundacióon > 3.5 m (bangladesh)\n> Lluvias intensas que duran varios días\n> El sitio del proyecto se encuentra a oriilas de cuerpos de agua",null,"MUY ALTA","> Destrucción de tejados de viviendas y edificios. \n> Las inundaciones dañan las plantas bajas de las estructuras. \n> Evacuación masiva de áreas residenciales. \n> Árboles arrancados de raíz y/o quebrados.\n> Algunas casas frágiles pueden ser arrancadas desde sus \n    cimientos.\n> Daños severos o totales a los cultivos anuales y permanentes.\n> Cortes y apagones de electricidad pueden durar varios días.\n> Inundaciones catastróficas en profundidad y duración, donde \n   está sumergido el primer piso de las edificaciones y hay peligro \n   de pérdida de vidas humanas.","> Observar las recomendaciones de la norma NSE-2-2018 (modificada 2020) de AGIES, capítulo No. 5. relacionadas al  viento y capítulo No. 10,  relacionado a condiciones de terreno, el subcapítulo 10.2.5 que se refiere a zonas inundables y erosionables.\n> Así como las demás NORMAS NSE de AGIES, relacionadas al diseño de los proyectos."]
[]
[]
[" CRITERIOS PARA DETERMINAR LA PROBABILIDAD DEL NIVEL DE INTENSIDAD \nDE OTRAS AMENAZAS",null,null,null,"PROBABILIDAD DE DAÑO SEGÚN EL NIVEL DE EXPOSICIÓN OTRAS AMENAZAS:___________________________"]
["TABLA No. 7\nPONDERACIÓN DEL FACTOR DE INTENSIDAD OTRAS AMENAZAS"]
["INTENSIDAD","CRITERIO",null,"NIVEL","DAÑO PROBABLE","RECOMENDACIÓN ????"]
[1,"> Sin daños significativos a la infraestructura\n> Pérdidas relativamente sin importancia\n> Sin interrupción de los servicios básicos",null,"BAJA","> Sin daños significativos a la infraestrucura.\n> Pérdidas relativamente sin importancia.\n> Sin interrupción de los servicios básicos.","En este caso dependerá del tipo de amenaza que se presente, y se recomienda que los diseños estén de acuerdo a las normas de seguridad estructural NSE de AGIES y de las normas ISO relacionadas a la calidad de materiales."]
[2,"> Daños leves a la infraestructura\n> Pérdidas de baja consideración\n> Interrupción momentánea de los servicios básicos",null,"MEDIA","> Daños leves a la infraestructura.\n> Pérdidas de baja consideración.\n> Interrupción momentánea de los servicios básicos.","En este caso dependerá del tipo de amenaza que se presente, y se recomienda que los diseños estén de acuerdo a las normas de seguridad estructural NSE de AGIES y de las normas ISO relacionadas a la calidad de materiales."]
[3,"> Daños severos a la infraestructura\n> Pérdidas elevadas\n> Interrupción parcial de los servicios básicos",null,"ALTA","> Daños severos a la infraestructura.\n> Pérdidas elevadas.\n> Interrupción parcial de los servicios básicos.","En este caso dependerá del tipo de amenaza que se presente, y se recomienda que los diseños estén de acuerdo a las normas de seguridad estructural NSE de AGIES y de las normas ISO relacionadas a la calidad de materiales."]
[4,"> Colapso de algunas construcciones\n> Pérdidas de gran magnitud\n> Interrupción de servicios básicos por períodos largos",null,"MUY ALTA","> Colapso de algunas construcciones.\n> Pérdidas de gran magnitud.\n> Interrupción de servicios básicos por períodos largos.","En este caso dependerá del tipo de amenaza que se presente, y se recomienda que los diseños estén de acuerdo a las normas de seguridad estructural NSE de AGIES y de las normas ISO relacionadas a la calidad de materiales."]

{"sheet":"VOLCANICA","index":7,"n_rows":43,"n_cols":3,"rows_kept":43,"cut":false,"hidden":true,"merged":[[39,0,39,2],[10,0,10,1],[30,1,31,1],[22,0,22,1],[24,0,24,1],[25,0,25,1],[26,0,26,1],[42,0,42,2],[0,0,0,2],[1,0,1,2],[23,0,23,1],[3,0,3,2],[4,0,4,2],[5,0,5,2],[7,0,7,2],[6,0,6,2],[40,0,40,2],[21,0,21,2],[8,0,8,2],[9,0,9,1],[13,0,13,1],[12,0,12,1],[11,0,11,1]]}
["MODULO No. 2   ANALISIS DE AMENAZA VOLCANICA"]
[]
["INSTRUCCIONES DE LLENADO:"]
["PROCEDER A LLENAR Y DE ACUERDO AL PUNTAJE DE LOS CRITERIOS IDENTIFICADOS, EL FACTOR DE INTENSIDAD, ASI COMO EL FACTOR DE FRECUENCIA DE LA AMENAZA EN ANALISIS. "]
["1. PONDERACION DEL FACTOR INTENSIDAD:  Se procede de acuerdo al puntaje de la tabla de \"Ponderacion del factor intensidad\" a calificar en el cuadro de \"INTENSIDAD \" y de acuerdo a los puntajes segun los criterios identificados en el sitio del proyecto (En el cuadro de ponderacion del factor intensidad, el cual esta diseñado con la funcion de \"validacion de datos\" por lo que solo aceptara los numeros del uno al cuatro, de lo contrario dará error)"]
["2. PONDERACION DEL FACTOR FRECUENCIA:  Se procede de acuerdo al puntaje de la tabla de \"Ponderacion del factor frecuencia\" a calificar en el cuadro de \"FRECUENCIA\" y de acuerdo a los criterios identificados en el sitio del proyecto (En el cuadro de valoracion de frecuencia, esta diseñado con \"validacion de datos\" el cual esta diseñado con la funcion de \"validacion de datos\" por lo que solo aceptara los numeros del uno al cuatro, de lo contrario dara error)\n"]
["3. La proteccion a la exposicion de las amenazas de: flujos piroclasticos, flujos de lava, lahares y bombas incandescentes, en general no son viables, por lo que al detectar el riesgo a una de estas amenazas (intensidad, frecuencia, cercania), se debera complementar el resultado de este analisis, con las restricciones de ocupacion que son emitidas por autoridad competente."]
[]
["PONDERACION DEL FACTOR INTENSIDAD"]
["De acuerdo a los siguientes criterios relevantes (uno o varios), se coloca el puntaje identificado en la tabla  \"valoracion intensidad sitio del proyecto\"",null,"puntaje"]
[">La distancia del sitio del proyecto en relacion a un edificio volcanico esta a mas de 50 Kms.  \n> Eventualmente ocurren caida de ceniza  (medio centimetro o menos de lamina de espesor)",null,1]
["> distancia del sitio del proyecto en relacion a un edificio volcanico de aproximadamente 30 Kms.\n> Eventualmente caida de TEFRA arena volcanica   (un centimetro  de lamina de espesor)  \n> actividad volcanica baja ",null,2]
[">distancia del sitio del proyecto en relacion a un edificio volcanico de menos de 30 Kms.\n> con antecedentes de actividad volcanica\n> historial de caida de TEFRA (arena volcanica de  mas de un centimetro  de lamina de espesor)  \n>el sitio del proyecto se encuentra ubucado en, o cerca de quebradas que surgen el edificio volcanico.",null,3]
["> Distancia de la obra proyectada en relacion a un edificio volcanico de 20 Kms. o menos)\n> Con historial de frecuente actividad volcánica \n> caida frecuente de TEFRA arena volcanica, lapilli; y cuando ha caido supera los tres centimetro de espesor\n> Tamaño de la TEFRA volcanica supera los 10 milimetros.\n> Historial de flujos de lava, lahares, flujos piroclasticos en las cercanias del sitio del proyecto.\n>el sitio del proyecto se encuentra ubucado en, o cerca de quebradas que surgen el edificio volcanico.",null,4]
[]
[]
[]
[null,"INTENSIDAD"]
[null,"Ingresar en esta casilla el puntaje de acuerdo a los criterios identificados y según la tabla del factor de intensidad de la amenaza "]
[null," "]
[]
["PONDERACION DEL FACTOR FRECUENCIA"]
["De acuerdo a los criterios de frecuencia en que se presenta la amenaza se coloca el puntaje identificado en la tabla  \"frecuencia\"",null,"puntaje"]
["El evento se presento hace mas de (20) años",null,1]
["El evento se presento en los ultimos 10 a 19 años",null,2]
["El evento se presento en los ultimos 5 a 9 años",null,3]
["El evento se presenta anualmente",null,4]
[]
[]
[null,"FRECUENCIA "]
[null,"Calificación según la ponderacion del factor de frecuencia de la amenaza"]
[]
[null," "]
[]
[]
[]
[]
[]
[]
[]
[]
[]
["CONTINUAR CON EL LLENADO DE LAS AMENAZAS  IDENTIFICADAS Y QUE PODRIAN AFECTAR AL PROYECTO PROPUESTO."]

{"sheet":"INUNDACION","index":8,"n_rows":33,"n_cols":3,"rows_kept":33,"cut":false,"hidden":true,"merged":[[0,0,0,2],[24,0,25,2],[3,0,3,2],[6,0,6,2],[9,0,9,1],[10,0,10,1],[11,0,11,1],[2,0,2,2],[1,0,1,2],[4,0,4,2],[5,0,5,2],[36,0,36,2],[34,0,34,2],[12,0,12,1],[7,0,7,2],[18,0,18,2],[19,0,19,1],[20,0,20,1],[8,0,8,1],[21,0,21,1],[22,0,22,1],[23,0,23,1],[33,0,33,2]]}
["MODULO No. 3   ANALISIS DE AMENAZA INUNDACION"]
[]
["INSTRUCCIONES DE LLENADO:"]
["PROCEDER A LLENAR Y DE ACUERDO AL PUNTAJE DE LOS CRITERIOS IDENTIFICADOS, EL FACTOR DE INTENSIDAD, ASI COMO EL FACTOR DE FRECUENCIA DE LA AMENAZA EN ANALISIS. "]
["1. PONDERACION DEL FACTOR INTENSIDAD:  Se procede de acuerdo al puntaje de la tabla de \"Ponderacion del factor intensidad\" a calificar en el cuadro de \"INTENSIDAD \" y de acuerdo a los puntajes segun los criterios identificados en el sitio del proyecto (En el cuadro de ponderacion del factor intensidad, el cual esta diseñado con la funcion de \"validacion de datos\" por lo que solo aceptara los numeros del uno al cuatro, de lo contrario dara error)"]
["2. PONDERACION DEL FACTOR FRECUENCIA:  Se procede de acuerdo al puntaje de la tabla de \"Ponderacion del factor frecuencia\" a calificar en el cuadro de \"FRECUENCIA\" y de acuerdo a los criterios identificados en el sitio del proyecto (En el cuadro de valoracion de frecuencia, esta diseñado con \"validacion de datos\" el cual esta diseñado con la funcion de \"validacion de datos\" por lo que solo aceptara los numeros del uno al cuatro, de lo contrario dara error)\n"]
[]
["PONDERACION DEL FACTOR INTENSIDAD"]
["De acuerdo a los siguientes criterios relevantes (uno o varios), se coloca el puntaje identificado en la tabla  \"valoracion intensidad sitio del proyecto\"",null,"puntaje"]
["> no existen antecedentes de inundacion, o cuando se dan entre 0 a 0.6 mts de altura.\n> No hay interrupcion de los servicios\n>no existe rios o cuerpos de agua cercanos\n>sitio del proyecto en terreno elevado.",null,1]
[">con antecedentes historicos de ocurrencia de inundaciones eventuales.\n>tirante de la inundacion  0.6 a 1 mts.de altura\n>cuando han ocurrido inundaciones el  nivel a alcanzado hasta los cincuenta centímetros  altura.\n>el tiempo de duraccion del espejo de agua producto de la inundacion a durado mas de 24 horas.\n> Daños moderados a la infraestructura \n> afecta el transito de vehiculos.\n> No hay interrupcion de los servicios",null,2]
["> El tirante de la inundacion alcanza entre  1  y 3.5 mts.de altura.\n> Colapso parcial de la infraestructura \n> Pérdidas considerables.\n> Interrupcion parcial de los servicios \n>afecta el transito de las personas",null,3]
["> El tirante de la inundacion alcanza mas de 3.5 mts.  de altura.\n> cuando sucede se sumerge el primer piso del edificio. \n> Peligro de vidas humanas.\n> Interrupcion de servicios,",null,4]
[]
[null,"INTENSIDAD"]
[null,"Colocar en esta casilla el puntaje de acuerdo a los criterios identificados y según la tabla del factor de intensidad de la amenaza "]
[null," "]
[]
["PONDERACION DEL FACTOR FRECUENCIA"]
["De acuerdo a los criterios de frecuencia en que se presenta la amenaza se coloca el puntaje identificado en la tabla  \"frecuencia\"",null,"puntaje"]
["El evento se presento hace mas de (20) años",null,1]
["El evento se presento en los ultimos 10 a 19 años",null,2]
["El evento se presento en los ultimos 5 a 9 años",null,3]
["El evento se presenta anualmente",null,4]
[]
[]
[null,"FRECUENCIA"]
[null,"Calificación según la ponderacion del factor de frecuencia de la amenaza"]
[null," "]
[]
[]
[]
[null,2]

{"sheet":"HURACANES","index":9,"n_rows":32,"n_cols":3,"rows_kept":32,"cut":false,"hidden":true,"merged":[[0,0,0,2],[21,0,21,2],[2,0,2,2],[3,0,3,2],[4,0,4,2],[5,0,5,2],[6,0,6,2],[7,0,7,2],[8,0,8,2],[9,0,9,1],[10,0,10,1],[11,0,11,1],[12,0,12,1],[13,0,13,1],[22,0,22,1],[41,0,41,2],[23,0,23,1],[24,0,24,1],[25,0,25,1],[26,0,26,1],[35,0,35,2],[34,0,34,2],[37,0,37,2]]}
["MODULO No. 5   ANALISIS DE AMENAZA HURACANES"]
[]
[]
["INSTRUCCIONES DE LLENADO:"]
["PROCEDER A LLENAR Y DE ACUERDO AL PUNTAJE DE LOS CRITERIOS IDENTIFICADOS, EL FACTOR DE INTENSIDAD, ASI COMO EL FACTOR DE FRECUENCIA DE LA AMENAZA EN ANALISIS. "]
["1. PONDERACION DEL FACTOR INTENSIDAD:  Se procede de acuerdo al puntaje de la tabla de \"Ponderacion del factor intensidad\" a calificar en el cuadro de \"INTENSIDAD \" y de acuerdo a los puntajes segun los criterios identificados en el sitio del proyecto (En el cuadro de ponderacion del factor intensidad, el cual esta diseñado con la funcion de \"validacion de datos\" por lo que solo aceptara los numeros del uno al cuatro, de lo contrario dara error)"]
["2. PONDERACION DEL FACTOR FRECUENCIA:  Se procede de acuerdo al puntaje de la tabla de \"Ponderacion del factor frecuencia\" a calificar en el cuadro de \"FRECUENCIA\" y de acuerdo a los criterios identificados en el sitio del proyecto (En el cuadro de valoracion de frecuencia, esta diseñado con \"validacion de datos\" el cual esta diseñado con la funcion de \"validacion de datos\" por lo que solo aceptara los numeros del uno al cuatro, de lo contrario dara error)\n"]
[]
["PONDERACION DEL FACTOR INTENSIDAD"]
["De acuerdo a los siguientes criterios relevantes (uno o varios), se coloca el puntaje identificado en la tabla  \"valoracion intensidad sitio del proyecto\"",null,"puntaje"]
[">Rango de velocidad de los vientos de 119- 153 Kms por hora (saffir-simpson)\n> Las hojas de los árboles se agitan constantemente, Se despliegan las banderas, (beuafort)\n>  profundidad de calado o tirante inundacion 0-0.6 mts. (bangladesh)",null,1]
[">Rango de velocidad de los vientos de 154- 177 Kms por hora (saffir-simpson)\n>Se mueven las ramas grandes de los árboles. Se utilizan con dificultad los paraguas.(beaufort)\n> profundidad de calado o tirante inundacion 0-0.6 -1.00 mts. (bangladesh)",null,2]
[">Rango de velocidad de los vientos de 178- 208 Kms por hora (saffir-simpson)\n>Se observa rara vez. Arranca árboles y ocasiona daños de\nconsideración en los edificios; Ocurren desperfectos en las partes salientes de los edificios, levantando tejados...(beaufort)\n> profundidad de calado o tirante inundacion 1 -3.5 mts. (bangladesh)",null,3]
[">Rango de velocidad de los vientos de209- > Kms por hora (saffir-simpson)\n>Observada muy rara vez. Ocasiona destrozos en todas\npartes.; Arranca árboles y ocasiona daños de consideración en los edificios...(beaufort)\n> profundidad de calado o tirante inundacion > 3.5 mts. (bangladesh)\n> Lluvias intensas que duran varios dias\n> El sitio del proyecto se encuentra a oriilas de cuerpos de agua",null,4]
[]
[]
[null,"INTENSIDAD"]
[null,"Calificación según la ponderacion del factor de intensidad de la amenaza"]
[null," "]
[]
[]
["PONDERACION DEL FACTOR FRECUENCIA"]
["De acuerdo a los criterios de frecuencia en que se presenta la amenaza se coloca el puntaje identificado en la tabla  \"frecuencia\"",null,"puntaje"]
["El evento se presento hace mas de (20) años",null,1]
["El evento se presento en los ultimos 10 a 19 años",null,2]
["El evento se presento en los ultimos 5 a 9 años",null,3]
["El evento se presenta anualmente",null,4]
[]
[]
[null,"FRECUENCIA"]
[null,"Calificación según la ponderacion del factor de frecuencia de la amenaza"]
[null," "]

{"sheet":"CLIMATICO","index":10,"n_rows":33,"n_cols":3,"rows_kept":33,"cut":false,"hidden":true,"merged":[[5,0,5,2],[0,0,0,2],[1,0,1,2],[2,0,2,2],[3,0,3,2],[4,0,4,2],[22,0,22,1],[6,0,6,2],[7,0,7,2],[8,0,8,1],[9,0,9,1],[10,0,10,1],[11,0,11,1],[12,0,12,1],[18,0,18,2],[19,0,19,1],[20,0,20,1],[21,0,21,1],[23,0,23,1],[24,0,25,2],[33,0,33,2],[34,0,34,2],[36,0,36,2]]}
["MODULO No. 3   ANALISIS DE AMENAZA INUNDACION"]
[]
["INSTRUCCIONES DE LLENADO:"]
["PROCEDER A LLENAR Y DE ACUERDO AL PUNTAJE DE LOS CRITERIOS IDENTIFICADOS, EL FACTOR DE INTENSIDAD, ASI COMO EL FACTOR DE FRECUENCIA DE LA AMENAZA EN ANALISIS. "]
["1. PONDERACION DEL FACTOR INTENSIDAD:  Se procede de acuerdo al puntaje de la tabla de \"Ponderacion del factor intensidad\" a calificar en el cuadro de \"INTENSIDAD \" y de acuerdo a los puntajes segun los criterios identificados en el sitio del proyecto (En el cuadro de ponderacion del factor intensidad, el cual esta diseñado con la funcion de \"validacion de datos\" por lo que solo aceptara los numeros del uno al cuatro, de lo contrario dara error)"]
["2. PONDERACION DEL FACTOR FRECUENCIA:  Se procede de acuerdo al puntaje de la tabla de \"Ponderacion del factor frecuencia\" a calificar en el cuadro de \"FRECUENCIA\" y de acuerdo a los criterios identificados en el sitio del proyecto (En el cuadro de valoracion de frecuencia, esta diseñado con \"validacion de datos\" el cual esta diseñado con la funcion de \"validacion de datos\" por lo que solo aceptara los numeros del uno al cuatro, de lo contrario dara error)\n"]
[]
["PONDERACION DEL FACTOR INTENSIDAD"]
["De acuerdo a los siguientes criterios relevantes (uno o varios), se coloca el puntaje identificado en la tabla  \"valoracion intensidad sitio del proyecto\"",null,"puntaje"]
["> no existen antecedentes de inundacion, o cuando se dan entre 0 a 0.6 mts de altura.\n> No hay interrupcion de los servicios\n>no existe rios o cuerpos de agua cercanos\n>sitio del proyecto en terreno elevado.",null,1]
[">con antecedentes historicos de ocurrencia de inundaciones eventuales.\n>tirante de la inundacion  0.6 a 1 mts.de altura\n>cuando han ocurrido inundaciones el  nivel a alcanzado hasta los cincuenta centímetros  altura.\n>el tiempo de duraccion del espejo de agua producto de la inundacion a durado mas de 24 horas.\n> Daños moderados a la infraestructura \n> afecta el transito de vehiculos.\n> No hay interrupcion de los servicios",null,2]
["> El tirante de la inundacion alcanza entre  1  y 3.5 mts.de altura.\n> Colapso parcial de la infraestructura \n> Pérdidas considerables.\n> Interrupcion parcial de los servicios \n>afecta el transito de las personas",null,3]
["> El tirante de la inundacion alcanza mas de 3.5 mts.  de altura.\n> cuando sucede se sumerge el primer piso del edificio. \n> Peligro de vidas humanas.\n> Interrupcion de servicios,",null,4]
[]
[null,"INTENSIDAD"]
[null,"Colocar en esta casilla el puntaje de acuerdo a los criterios identificados y según la tabla del factor de intensidad de la amenaza "]
[null," "]
[]
["PONDERACION DEL FACTOR FRECUENCIA"]
["De acuerdo a los criterios de frecuencia en que se presenta la amenaza se coloca el puntaje identificado en la tabla  \"frecuencia\"",null,"puntaje"]
["El evento se presento hace mas de (20) años",null,1]
["El evento se presento en los ultimos 10 a 19 años",null,2]
["El evento se presento en los ultimos 5 a 9 años",null,3]
["El evento se presenta anualmente",null,4]
[]
[]
[null,"FRECUENCIA"]
[null,"Calificación según la ponderacion del factor de frecuencia de la amenaza"]
[null," "]
[]
[]
[]
[null,2]

{"sheet":"DESLIZAMIENTOS","index":11,"n_rows":31,"n_cols":3,"rows_kept":31,"cut":false,"hidden":true,"merged":[[11,0,11,1],[12,0,12,1],[6,0,6,2],[7,0,7,2],[8,0,8,2],[9,0,9,1],[10,0,10,1],[0,0,0,2],[2,0,2,2],[3,0,3,2],[4,0,4,2],[5,0,5,2],[13,0,13,1],[21,0,21,1],[22,0,22,1],[23,0,23,1],[24,0,24,1],[20,0,20,2],[25,0,25,1],[37,0,37,2],[38,0,38,2],[35,0,35,2],[40,0,40,2],[39,0,39,2],[33,0,33,2],[34,0,34,2],[36,0,36,2]]}
["MODULO No. 4   ANALISIS DE AMENAZA DESLIZAMIENTO /DERRUMBE"]
[]
[]
["INSTRUCCIONES DE LLENADO:"]
["PROCEDER A LLENAR Y DE ACUERDO AL PUNTAJE DE LOS CRITERIOS IDENTIFICADOS, EL FACTOR DE INTENSIDAD, ASI COMO EL FACTOR DE FRECUENCIA DE LA AMENAZA EN ANALISIS. "]
["1. PONDERACION DEL FACTOR INTENSIDAD:  Se procede de acuerdo al puntaje de la tabla de \"Ponderacion del factor intensidad\" a calificar en el cuadro de \"INTENSIDAD \" y de acuerdo a los puntajes segun los criterios identificados en el sitio del proyecto (En el cuadro de ponderacion del factor intensidad, el cual esta diseñado con la funcion de \"validacion de datos\" por lo que solo aceptara los numeros del uno al cuatro, de lo contrario dara error)"]
["2. PONDERACION DEL FACTOR FRECUENCIA:  Se procede de acuerdo al puntaje de la tabla de \"Ponderacion del factor frecuencia\" a calificar en el cuadro de \"FRECUENCIA\" y de acuerdo a los criterios identificados en el sitio del proyecto (En el cuadro de valoracion de frecuencia, esta diseñado con \"validacion de datos\" el cual esta diseñado con la funcion de \"validacion de datos\" por lo que solo aceptara los numeros del uno al cuatro, de lo contrario dara error)\n"]
[]
["PONDERACION DEL FACTOR INTENSIDAD"]
["De acuerdo a los siguientes criterios relevantes (uno o varios), se coloca el puntaje identificado en la tabla  \"valoracion intensidad sitio del proyecto\"",null,"puntaje"]
[">no existe historial de deslizamientos\n>terreno clase I,plano o con pendiente  de  0 a 12 % \n> tipo de suelo, compacto y/o rocoso\n> existe vegetacion forestal\n> no se observan mantos freaticos\n>la distancia al proyecto de la cresta es de 500 mts o mas del sitio del proyecto\n> no existen fracturas o grietas que puedan afectar el sitio del proyecto\n",null,1]
["> No existe historial de deslizamientos\n>terreno clase II, con pendientes de  aproximadamente de 12 a 25 %\n> tipo de suelo poroso y/o con dendritas\n> no existe cobertura vegetal\n> se observan mantos freáticos\n>la distancia al proyecto de la cresta es de 300 a 400   del sitio del proyecto\n>zonas probables de deslizamiento según mapas de Conred.\n>  fracturas o grietas orientadas al sitio del proyecto\n",null,2]
[">Existe historia de deslizamientos\n>terreno  clase III, con pendientes de  aproximadamente de 25 a 50 %\n> tipo de suelo suelto poroso y/o con dendritas\n> no existe cobertura vegetal\n> se observan mantos freáticos\n>la distancia al proyecto de la cresta es de 400 a 200   del sitio del proyecto\n>zonas probables de deslizamiento según mapas de Conred.\n> fracturas o grietas están orientadas al sitio del proyecto\n",null,3]
[">  existe historial de constantes deslizamientos\n>terreno  clase IV, con pendientes de  aproximadamente de 50 0 mas %\n> tipo de suelo suelto poroso y/o con dendritas\n> no existe cobertura vegetal\n> se observan mantos freáticos/ falta de canalización de aguas negras y lluvias.\n>la distancia al proyecto de la cresta es de 200 o menos del sitio del proyecto\n>zonas probables de alto riesgo de deslizamiento según mapas de Conred.\n> la orientación de las fracturas o grietas están orientadas al sitio del proyecto\n",null,4]
[]
[null,"INTENSIDAD"]
[null,"Calificación según la ponderacion del factor de intensidad de la amenaza"]
[null," "]
[]
[]
["PONDERACION DEL FACTOR FRECUENCIA"]
["De acuerdo a los criterios de frecuencia en que se presenta la amenaza se coloca el puntaje identificado en la tabla  \"frecuencia\"",null,"puntaje"]
["El evento se presento hace mas de (20) años",null,1]
["El evento se presento en los ultimos 10 a 19 años",null,2]
["El evento se presento en los ultimos 5 a 9 años",null,3]
["El evento se presenta anualmente",null,4]
[]
[]
[null,"FRECUENCIA"]
[null,"Calificación según la ponderacion del factor de frecuencia de la amenaza"]
[null," "]

{"sheet":"SISMOS","index":12,"n_rows":20,"n_cols":10,"rows_kept":20,"cut":false,"hidden":true,"merged":[[19,9,19,12],[0,0,0,2],[3,0,3,2],[4,0,4,2],[2,0,2,2],[1,0,1,2],[19,0,19,2],[5,0,5,2],[12,0,12,2],[13,0,13,2]]}
["MODULO No. 6   ANALISIS DE AMENAZA SISMICA"]
[]
["La amenaza sismica se calcula, tomando datos referenciales del indice de sismicidad por municipio y de acuerdo a los ultimos resultados del estudio y que estan en la norma de NSE-2-2020, de la Asociacion Guatemalteca de Ingenieria Estructural-AGIES."]
["1. INDICE DE SISMICIDAD: indice de sismicidad (Io) y parametros de sismo extremo con Pe_2% en 50 años (norma AGIES DSE 2.01 2020) Demandas estructurales y condiciones de sitio.\n-Se define como \"sismo extremo\" al que tiene un 2% de probabilidad nominal de ser excedido en un período de 50 años. Este sismo es la base\npara la zonificación sísmica\n-Incide sobre el nivel de protección sísmica que se hace necesario para diseñar la obra o edificación e incide en la selección del espectro sísmico de\ndiseño.\n-Para efecto de esta norma, el territorio de Guatemala se divide en macro-zonas de amenaza sísmica caracterizadas por su índice de sismicidad que varía desde Io = 2 a Io = 4. (informacion tomada de la norma NSE-2-2020, AGIES)\n\nEl indice de sismicidad en esta herramienta se genera automaticamente de acuerdo al municipio seleccionado, datos tomados de la norma NSE-2-2020  de AGIES.\n\n\n"]
["2.NIVEL DE LA AMENAZA: En funcion del indice de sismicidad (AGIES), y de acuerdo valoraciones semanticas propias de la Segeplan, se agruparon los indices definidos subjetivamente el nivel de la amenaza sismica de acuerdo al indice sismico, siendo este  un indicativo de valoracion dado y de acuerdo a los niveles de amenaza manejados en esta herramienta, sin embargo para el detalle tecnico y la informacion de los indices de sismicidad para los calculos estructurales de la obra, se debera de recurrir a la NSE-2-2020 de AGIES."]
[]
[]
[null,"INDICE DE SISMICIDAD"]
[null," (De acuerdo a la clasificacion del indice de sismicidad por municipio AGIES  NSE-2-2020)"]
[null,{"$f":"INDEX(TABLA_INDICE_SISMICIDAD_EJEMPLO!B2:B341,MATCH('DATOS GENERALES'!C16,TABLA_INDICE_SISMICIDAD_EJEMPLO!A2:A341,0))","v":4.0999999999999996}]
[]
[]
["NIVEL DE LA AMENAZAS SISMICA"]
[" El nivel de amenaza se indica en los resultados finales de este analisis, y esta definido de acuerdo a la clasificacion universal, criterios segun la percepcion realizada por la segeplan tomando como base los rangos del indice sismicidad de AGIES, este nivel es referencial, el valor de los indice de sismicidad, es el dato que debe de tomarse en cuenta para los calculos estructurales y diseño del proyecto, de acuerdo a las normas de AGIES."]
[]
[]
[]
[]
[]
[null,null,null,null,null,null,null,null,null,"SE TOMARAN LOS DATOS QUE PROPORCIONA LA NRD 2-10 RESPECTO A LA AMENAZA DE VIENTOS FUERTES POR RAZONES DE DISEÑO Y SE CONSIDERA QUE ESTA AMENAZA Y LA DE INUNDACION SON ASOCIADAS (CONSECUENCIA) A LAS DE HURACANES Y TORMENTAS TROPICALES."]

{"sheet":"VIENTOS","index":13,"n_rows":39,"n_cols":3,"rows_kept":39,"cut":false,"hidden":true,"merged":[[2,0,2,2],[18,0,18,2],[38,0,38,2],[37,0,37,2],[0,0,0,2],[1,0,1,2],[4,0,4,2],[3,0,3,2],[12,0,12,2],[13,0,13,2]]}
["MODULO No. 7  ANALISIS DE AMENAZA VIENTOS FUERTES"]
["INSTRUCCIONES DE LLENADO:"]
["Las  velocicades del viento en ciertas epocas del año por municipio,  se toman de datos referenciales de las velocidades de los vientos, de acuerdo a los resultados de la norma de NSE-2-2020, de la Asociacion Guatemalteca de Ingenieria Estructural-AGIES.\n"]
["1. pára fines de infraestructura que puede ser suscepible de daños por vientos fuertes, tomar en cuenta en la elaboracion de los diseños y los calculos estructurales, la norma NSE2-2020 de AGIES."]
["2. se recomienda complementar la informacion, con mapas de vientos del INSIVUMEH y la informacion de los actores locales."]
[]
[]
[null,"INTENSIDAD DEL VIENTO EN KM / HORA, "]
[null,"(De acuerdo a la clasificacion de las zonas de viento por municipio AGIES  NSE-2-2020)"]
[null,{"$f":"INDEX(TABLA_INDICE_SISMICIDAD_EJEMPLO!C2:C341,MATCH('DATOS GENERALES'!C16,TABLA_INDICE_SISMICIDAD_EJEMPLO!A2:A341,0))","v":100}]
[]
[]
["NIVEL DE LA AMENAZAS  "]
[" El nivel de amenaza se indica en los resultados finales de este analisis, y esta definido de acuerdo a la clasificacion universal, criterios segun la percepcion realizada por la segeplan tomando como base los rangos de velocidades de los vientos maximos, este nivel es referencial, el valor de las velocidades de viento por municipio, es el dato que debe de tomarse en cuenta para los calculos estructurales y diseño del proyecto, de acuerdo a las normas de AGIES."]
[]
[null,null,"Sacapulas"]
[]
[]
["(clasificacion segun criterios definidos por la segeplan, y en base a los rangos de datos de velocidades de vientos de AGIES, el nivel es unicamente referencial, el valor de las velocidades del viento son los que deben de tomarse para los calculos del proyecto.  Se recomienda complementar este dato con otros datos proporcionados por instituciones especializads en el tema."]
[]
[]
[]
[]
[]
[]
[]
[]
[]
[]
[]
[]
[]
[]
[]
[]
[]
[]
[]
["CONTINUAR CON EL LLENADO DE LA INFORMACION DE LAS AMENAZAS RESTANTES IDENTIFICADAS.\n\" EN EL MODULO RESULTADOS FINALES, SE MOSTRARAN LOS DATOS OBTENIDOS DEL ANALISIS \""]

{"sheet":"OTRAS#1","index":14,"n_rows":31,"n_cols":3,"rows_kept":31,"cut":false,"hidden":true,"merged":[[8,0,8,2],[3,0,3,2],[4,0,4,2],[5,0,5,2],[6,0,6,2],[7,0,7,2],[25,0,25,1],[33,0,33,2],[37,0,37,2],[0,0,0,1],[20,0,20,2],[21,0,21,1],[22,0,22,1],[23,0,23,1],[24,0,24,1],[9,0,9,1],[10,0,10,1],[11,0,11,1],[12,0,12,1],[13,0,13,1],[1,0,1,2],[2,0,2,2]]}
["MODULO No. 8   OTRAS AMENAZAS (identificarla)",null," "]
[]
[]
["INSTRUCCIONES DE LLENADO:"]
["PROCEDER A LLENAR Y DE ACUERDO AL PUNTAJE DE LOS CRITERIOS IDENTIFICADOS, EL FACTOR DE INTENSIDAD, ASI COMO EL FACTOR DE FRECUENCIA DE LA AMENAZA EN ANALISIS. "]
["1. PONDERACION DEL FACTOR INTENSIDAD:  Se procede de acuerdo al puntaje de la tabla de \"Ponderacion del factor intensidad\" a calificar en el cuadro de \"INTENSIDAD \" y de acuerdo a los puntajes segun los criterios identificados en el sitio del proyecto (En el cuadro de ponderacion del factor intensidad, el cual esta diseñado con la funcion de \"validacion de datos\" por lo que solo aceptara los numeros del uno al cuatro, de lo contrario dara error)"]
["2. PONDERACION DEL FACTOR FRECUENCIA:  Se procede de acuerdo al puntaje de la tabla de \"Ponderacion del factor frecuencia\" a calificar en el cuadro de \"FRECUENCIA\" y de acuerdo a los criterios identificados en el sitio del proyecto (En el cuadro de valoracion de frecuencia, esta diseñado con \"validacion de datos\" el cual esta diseñado con la funcion de \"validacion de datos\" por lo que solo aceptara los numeros del uno al cuatro, de lo contrario dara error)\n"]
[]
["PONDERACION DEL FACTOR INTENSIDAD"]
["De acuerdo a los siguientes criterios relevantes (uno o varios), se coloca el puntaje identificado en la tabla  \"valoracion intensidad sitio del proyecto\"",null,"puntaje"]
["> Sin daños significativos a la infraestrucura\n> Pérdidas relativamente sin importancia\n> Sin interrupción de los servicios básicos",null,1]
["> Daños leves a la infraestructura\n> Pérdidas de baja consideración\n> Interrupción momentánea de los servicios básicos","> Daños leves a la infraestructura\n> Pérdidas de baja consideración\n> Interrupción momentánea de los servicios básicos",2]
["> Daños severos a la infraestructura\n> Pérdidas elevadas\n> Interrupción partcial de los servicios básicos","> Daños severos a la infraestructura\n> Pérdidas elevadas\n> Interrupción partcial de los servicios básicos",3]
["> Colapso de algunas construcciones\n> Pérdidas de gran magnitud\n> Interrupción de servicios básicos por períodos largos","> Colapso de algunas construcciones\n> Pérdidas de gran magnitud\n> Interrupción de servicios básicos por períodos largos",4]
[]
[null,"INTENSIDAD"]
[null,"Calificación según la ponderacion del factor de intensidad de la amenaza"]
[null," "]
[]
[]
["PONDERACION DEL FACTOR FRECUENCIA"]
["De acuerdo a los criterios de frecuencia en que se presenta la amenaza se coloca el puntaje identificado en la tabla  \"frecuencia\"",null,"puntaje"]
["El evento se presento hace mas de (20) años",null,1]
["El evento se presento en los ultimos 10 a 19 años",null,2]
["El evento se presento en los ultimos 5 a 9 años",null,3]
["El evento se presenta anualmente",null,4]
[]
[]
[null,"FRECUENCIA"]
[null,"Calificación según la ponderacion del factor de frecuencia de la amenaza"]
[null," "]

{"sheet":"OTRAS#2","index":15,"n_rows":31,"n_cols":3,"rows_kept":31,"cut":false,"hidden":true,"merged":[[11,0,11,1],[0,0,0,1],[1,0,1,2],[2,0,2,2],[3,0,3,2],[4,0,4,2],[5,0,5,2],[6,0,6,2],[7,0,7,2],[8,0,8,2],[9,0,9,1],[10,0,10,1],[24,0,24,1],[25,0,25,1],[33,0,33,2],[38,0,38,2],[12,0,12,1],[13,0,13,1],[20,0,20,2],[21,0,21,1],[22,0,22,1],[23,0,23,1]]}
["MODULO No. 9   OTRAS AMENAZAS (identificarla)",null," "]
[]
[]
["INSTRUCCIONES DE LLENADO:"]
["PROCEDER A LLENAR Y DE ACUERDO AL PUNTAJE DE LOS CRITERIOS IDENTIFICADOS, EL FACTOR DE INTENSIDAD, ASI COMO EL FACTOR DE FRECUENCIA DE LA AMENAZA EN ANALISIS. "]
["1. PONDERACION DEL FACTOR INTENSIDAD:  Se procede de acuerdo al puntaje de la tabla de \"Ponderacion del factor intensidad\" a calificar en el cuadro de \"INTENSIDAD \" y de acuerdo a los puntajes segun los criterios identificados en el sitio del proyecto (En el cuadro de ponderacion del factor intensidad, el cual esta diseñado con la funcion de \"validacion de datos\" por lo que solo aceptara los numeros del uno al cuatro, de lo contrario dara error)"]
["2. PONDERACION DEL FACTOR FRECUENCIA:  Se procede de acuerdo al puntaje de la tabla de \"Ponderacion del factor frecuencia\" a calificar en el cuadro de \"FRECUENCIA\" y de acuerdo a los criterios identificados en el sitio del proyecto (En el cuadro de valoracion de frecuencia, esta diseñado con \"validacion de datos\" el cual esta diseñado con la funcion de \"validacion de datos\" por lo que solo aceptara los numeros del uno al cuatro, de lo contrario dara error)\n"]
[]
["PONDERACION DEL FACTOR INTENSIDAD"]
["De acuerdo a los siguientes criterios relevantes (uno o varios), se coloca el puntaje identificado en la tabla  \"valoracion intensidad sitio del proyecto\"",null,"puntaje"]
["> Sin daños significativos a la infraestrucura\n> Pérdidas relativamente sin importancia\n> Sin interrupción de los servicios básicos",null,1]
["> Daños leves a la infraestructura\n> Pérdidas de baja consideración\n> Interrupción momentánea de los servicios básicos","> Daños leves a la infraestructura\n> Pérdidas de baja consideración\n> Interrupción momentánea de los servicios básicos",2]
["> Daños severos a la infraestructura\n> Pérdidas elevadas\n> Interrupción partcial de los servicios básicos","> Daños severos a la infraestructura\n> Pérdidas elevadas\n> Interrupción partcial de los servicios básicos",3]
["> Colapso de algunas construcciones\n> Pérdidas de gran magnitud\n> Interrupción de servicios básicos por períodos largos","> Colapso de algunas construcciones\n> Pérdidas de gran magnitud\n> Interrupción de servicios básicos por períodos largos",4]
[]
[null,"INTENSIDAD"]
[null,"Calificación según la ponderacion del factor de intensidad de la amenaza"]
[null," "]
[]
[]
["PONDERACION DEL FACTOR FRECUENCIA"]
["De acuerdo a los criterios de frecuencia en que se presenta la amenaza se coloca el puntaje identificado en la tabla  \"frecuencia\"",null,"puntaje"]
["El evento se presento hace mas de (20) años",null,1]
["El evento se presento en los ultimos 10 a 19 años",null,2]
["El evento se presento en los ultimos 5 a 9 años",null,3]
["El evento se presenta anualmente",null,4]
[]
[]
[null,"FRECUENCIA"]
[null,"Calificación según la ponderacion del factor de frecuencia de la amenaza"]
[null," "]

{"sheet":"OTRAS#3","index":16,"n_rows":31,"n_cols":3,"rows_kept":31,"cut":false,"hidden":true,"merged":[[11,0,11,1],[0,0,0,1],[1,0,1,2],[2,0,2,2],[3,0,3,2],[4,0,4,2],[5,0,5,2],[6,0,6,2],[7,0,7,2],[8,0,8,2],[9,0,9,1],[10,0,10,1],[24,0,24,1],[25,0,25,1],[33,0,33,2],[38,0,38,2],[12,0,12,1],[13,0,13,1],[20,0,20,2],[21,0,21,1],[22,0,22,1],[23,0,23,1]]}
["MODULO No. 10   OTRAS AMENAZAS (identificarla)",null," "]
[]
[]
["INSTRUCCIONES DE LLENADO:"]
["PROCEDER A LLENAR Y DE ACUERDO AL PUNTAJE DE LOS CRITERIOS IDENTIFICADOS, EL FACTOR DE INTENSIDAD, ASI COMO EL FACTOR DE FRECUENCIA DE LA AMENAZA EN ANALISIS. "]
["1. PONDERACION DEL FACTOR INTENSIDAD:  Se procede de acuerdo al puntaje de la tabla de \"Ponderacion del factor intensidad\" a calificar en el cuadro de \"INTENSIDAD \" y de acuerdo a los puntajes segun los criterios identificados en el sitio del proyecto (En el cuadro de ponderacion del factor intensidad, el cual esta diseñado con la funcion de \"validacion de datos\" por lo que solo aceptara los numeros del uno al cuatro, de lo contrario dara error)"]
["2. PONDERACION DEL FACTOR FRECUENCIA:  Se procede de acuerdo al puntaje de la tabla de \"Ponderacion del factor frecuencia\" a calificar en el cuadro de \"FRECUENCIA\" y de acuerdo a los criterios identificados en el sitio del proyecto (En el cuadro de valoracion de frecuencia, esta diseñado con \"validacion de datos\" el cual esta diseñado con la funcion de \"validacion de datos\" por lo que solo aceptara los numeros del uno al cuatro, de lo contrario dara error)\n"]
[]
["PONDERACION DEL FACTOR INTENSIDAD"]
["De acuerdo a los siguientes criterios relevantes (uno o varios), se coloca el puntaje identificado en la tabla  \"valoracion intensidad sitio del proyecto\"",null,"puntaje"]
["> Sin daños significativos a la infraestrucura\n> Pérdidas relativamente sin importancia\n> Sin interrupción de los servicios básicos",null,1]
["> Daños leves a la infraestructura\n> Pérdidas de baja consideración\n> Interrupción momentánea de los servicios básicos","> Daños leves a la infraestructura\n> Pérdidas de baja consideración\n> Interrupción momentánea de los servicios básicos",2]
["> Daños severos a la infraestructura\n> Pérdidas elevadas\n> Interrupción partcial de los servicios básicos","> Daños severos a la infraestructura\n> Pérdidas elevadas\n> Interrupción partcial de los servicios básicos",3]
["> Colapso de algunas construcciones\n> Pérdidas de gran magnitud\n> Interrupción de servicios básicos por períodos largos","> Colapso de algunas construcciones\n> Pérdidas de gran magnitud\n> Interrupción de servicios básicos por períodos largos",4]
[]
[null,"INTENSIDAD"]
[null,"Calificación según la ponderacion del factor de intensidad de la amenaza"]
[null," "]
[]
[]
["PONDERACION DEL FACTOR FRECUENCIA"]
["De acuerdo a los criterios de frecuencia en que se presenta la amenaza se coloca el puntaje identificado en la tabla  \"frecuencia\"",null,"puntaje"]
["El evento se presento hace mas de (20) años",null,1]
["El evento se presento en los ultimos 10 a 19 años",null,2]
["El evento se presento en los ultimos 5 a 9 años",null,3]
["El evento se presenta anualmente",null,4]
[]
[]
[null,"FRECUENCIA"]
[null,"Calificación según la ponderacion del factor de frecuencia de la amenaza"]
[null," "]

{"sheet":"RESULTADOS_FINALES","index":17,"n_rows":59,"n_cols":7,"rows_kept":59,"cut":false,"hidden":true,"merged":[[58,1,58,3],[45,2,45,6],[46,0,48,3],[53,1,53,3],[52,0,53,0],[46,4,48,4],[46,5,48,5],[49,1,49,3],[50,1,50,3],[54,1,54,3],[52,1,52,3],[49,0,51,0],[51,1,51,3],[0,0,0,6],[46,6,48,6],[14,2,14,6],[16,2,16,6],[7,2,7,6],[12,2,12,6],[5,2,5,6],[31,0,31,6],[32,0,32,1],[32,2,32,6],[33,0,33,6],[34,0,34,1],[9,0,9,1],[9,2,9,6],[12,0,12,1],[14,0,14,1],[15,1,15,6],[1,0,1,6],[3,0,3,1],[5,0,5,1],[7,0,7,1],[4,0,4,1],[4,2,4,6],[3,2,3,6],[43,0,43,6],[16,0,16,1],[18,0,18,1],[18,2,18,6],[35,1,35,6],[36,1,36,6],[40,0,40,4],[39,0,39,4],[34,2,34,6],[28,0,28,1],[28,2,28,6],[29,0,29,6],[41,0,41,4],[20,0,21,1],[37,0,37,7],[59,0,60,7],[56,1,56,3],[57,1,57,3],[55,0,57,0],[22,0,22,1],[22,2,22,6],[30,0,30,1],[30,2,30,6],[24,0,24,1],[24,2,24,6],[26,0,26,1],[26,2,26,6],[27,0,27,6],[55,1,55,3],[44,0,44,6],[45,0,45,1]]}
[" DATOS GENERALES DEL PROYECTO"]
[]
[]
["NOMBRE Y TIPO DEL PROYECTO",null,{"$f":"'DATOS GENERALES'!C3:C3","v":"slsadlsñadñlsadklñsadk"}]
["SNIP",null,{"$f":"+'DATOS GENERALES'!C4","v":21020139213}]
["BREVE DESCRIPCIÓN DEL PROYECTO",null,{"$f":"'DATOS GENERALES'!C5:C5","v":"asdñllasdññlasdkñ|"}]
[]
[]
[]
["UNIDAD EJECUTORA",null,{"$f":"'DATOS GENERALES'!C9:C9","v":"DKLSDKÑASDKSADKL"}]
[]
[]
["REGIÓN",null,{"$f":"'DATOS GENERALES'!C12:C12","v":"I"}]
[]
["DEPARTAMENTO",null,{"$f":"'DATOS GENERALES'!C14:C14","v":"GUATEMALA"}]
[]
["MUNICIPIO",null,{"$f":"'DATOS GENERALES'!C16:C16","v":"SANTA_CATARINA_PINULA"}]
[]
["LUGAR POBLADO",null,{"$f":"'DATOS GENERALES'!C18","v":"AAS"}]
[null,null,null,null,"Grados","Minutos","Segundos"]
["COORDENADAS GTM",null,"Latitud",360,18,0,0]
[null,null,"Longitud",null,88,0,0]
["NIVEL DEL ESTUDIO",null,{"$f":"'DATOS GENERALES'!C23","v":0}]
[]
["FECHA DEL ANÁLISIS DE RIESGO",null,{"$f":"'DATOS GENERALES'!C25","v":"00:00:00"}]
[]
["NOMBRE DEL EVALUADOR",null,{"$f":"'DATOS GENERALES'!C27","v":"ASDSDASDASDA"}]
[]
["CARGO",null,{"$f":"'DATOS GENERALES'!C29","v":"QDASSDASDAQ"}]
["."]
["INSTITUCIÓN",null,{"$f":"'DATOS GENERALES'!C31","v":"SDASDASDASDA"}]
[]
["PROFESIÓN",null,{"$f":"'DATOS GENERALES'!C33","v":"QASDASDSDA"}]
[]
["No. COLEGIADO",null,{"$f":"'DATOS GENERALES'!C35","v":11111}]
[null,"NIVEL DE RIESGO PARA EL PROYECTO"]
[null,{"$f":"IF(OR(E50=\"MUY ALTA\",E51=\"MUY ALTA\",E52=\"MUY ALTA\",E55=\"MUY ALTA\"),\"Exposición MUY ALTA en algunas de las amenazas identificadas, se recomienda buscar un nuevo sitio o indicar medidas de mitigación/protección y costo estimado de las mismas.\",IF(OR(E50=\"ALTA\",E51=\"ALTA\",E52=\"ALTA\",E55=\"ALTA\"),\"Exposición ALTA en algunas de las amenazas identificadas, se recomienda buscar un nuevo sitio o indicar medidas de mitigación/protección y costo estimado de las mismas.\",IF(OR(E51=\"MEDIA\",E52=\"MEDIA\",E55=\"MEDIA\"),\"Exposición MEDIA en algunas de las amenazas identificadas, indicar medidas de mitigación/protección y costo estimado de las mismas.\",\" Exposición BAJA en algunas de las amenazas identificadas, indicar medidas de mitigación/protección y costo estimado de las mismas.\")))","v":"Exposición ALTA en algunas de las amenazas identificadas, se recomienda buscar un nuevo sitio o indicar medidas de mitigación/protección y costo estimado de las mismas."}]
["Es obligatorio anexar mínimo 6 fotografías del sitio y/o infrasestructura, las cuales cada una debe incluir                                                                                 número de fotografía, fecha,  georeferencia, descripción de la fotografía."]
[null,null,null,null,null,"sellos"]
["Firma de Formulador del Análisis de Riesgo",null,null,null,null,null,"V.°B.° Director de Planificación"]
[{"$f":"+'DATOS GENERALES'!C37","v":"ASDSDASDADSA"},null,null,null,null," ",{"$f":"+'DATOS GENERALES'!C39","v":"DSDADAS"}]
[{"$f":"CONCATENATE(\"DPI   \",'DATOS GENERALES'!C38)","v":"DPI   1234567890123"},null,null,null,null,null,{"$f":"CONCATENATE(\"DPI    \",'DATOS GENERALES'!C40)","v":"DPI    1234567890123"}]
[]
["RESULTADOS DEL ANÁLISIS"]
[]
["NOMBRE Y UBICACIÓN DEL PROYECTO",null,{"$f":"C4","v":"slsadlsñadñlsadklñsadk"}]
["AMENAZAS",null,null,null,"NIVEL DE LA RELACIÓN INTENSIDAD Y FRECUENCIA DE LAS AMENAZAS EN EL SITIO DEL PROYECTO \n(EXPOSICIÓN)\n","EFECTOS PROBABLES A LA EXPOSICIÓN DEL SITIO DEL PROYECTO Y SEGÚN AMENAZA EVALUADA","RECOMENDACIONES"]
[]
[]
["GEOLÓGICAS","Sismicidad\n(Terremoto)",null,null,{"$f":"IF(AND(SISMOS!B10=2),\"BAJA\",IF(AND(SISMOS!B10=3),\"MEDIA\",IF(AND(SISMOS!B10=4.1),\"ALTA\",IF(AND(SISMOS!B10=4.2),\"MUY ALTA\",IF(AND(SISMOS!B10=0),\"SIN DATO\")))))","v":"ALTA"},{"$f":"IFERROR(VLOOKUP(E50,PROBABILIDAD_DAÑO!$D$6:$F$9,2,FALSE),\"-----\")","v":"> Muy fuerte a destructivo EMM (VII-IX), \n> Daños considerables en estructuras especializadas, paredes fuera de plomo. \n> Grandes daños en importantes edificios, con colapsos parciales.\n> Edificios desplazados fuera de las bases."},{"$f":"IFERROR(VLOOKUP(E50,PROBABILIDAD_DAÑO!$D$6:$F$9,3,FALSE),\"-----\")","v":"A NIVEL NACIONAL SE RECOMIENDA CONSULTAR: \n\n> NORMATIVA NSE-2-2018 (modificada 2020) de AGIES, con el objetivo de calcular y segun el índice de sismicidad del sitio, el diseño de acuerdo a la ordenada espectral de período corto y la ordenada espectral con período de 1 segundo.\n> NORMATIVA NSE-2.1-18 (modificada 2020),de AGIES relacionada a los estudios geotécnicos.\n> NORMATIVA NSE-1, 2018 (modificada 2020) de AGIES,  relacionada a generalidades, administración de las normas y supervisión técnica.\n> Así como las demás NORMAS NSE de AGIES relacionadas al diseño de los proyectos."}]
[null,"Volcánicas",null,null,{"$f":"IFERROR(VLOOKUP(VOLCANICA!B20,'tablas exposicion'!$C$20:$G$23,MATCH(VOLCANICA!B33,'tablas exposicion'!$D$19:$G$19,0)+1,0),\"NO IDENTIFICADA\")","v":"NO IDENTIFICADA"},{"$f":"IFERROR(VLOOKUP(E51,PROBABILIDAD_DAÑO!$D$14:$F$17,2,FALSE),\"-----\")","v":"-----"},{"$f":"IFERROR(VLOOKUP(E51,PROBABILIDAD_DAÑO!$D$14:$F$17,3,FALSE),\"-----\")","v":"-----"}]
[null,"Deslizamientos / Derrumbes",null,null,{"$f":"IFERROR(VLOOKUP(DESLIZAMIENTOS!B18,'tablas exposicion'!$C$70:$G$73,MATCH(DESLIZAMIENTOS!B31,'tablas exposicion'!$D$69:$G$69,0)+1,0),\"NO IDENTIFICADA\")","v":"NO IDENTIFICADA"},{"$f":"IFERROR(VLOOKUP(E52,PROBABILIDAD_DAÑO!$D$30:$F$33,2,FALSE),\"-----\")","v":"-----"},{"$f":"IFERROR(VLOOKUP(E52,PROBABILIDAD_DAÑO!$D$30:$F$33,3,FALSE),\"-----\")","v":"-----"}]
["HIDROMETEOROLÓGICAS","Vientos fuertes",null,null,{"$f":"IF(AND(VIENTOS!B10=100),\"BAJA\",IF(AND(VIENTOS!B10=110),\"MEDIA\",IF(AND(VIENTOS!B10=120),\"ALTA\",IF(AND(VIENTOS!B10=0),))))","v":"BAJA"},{"$f":"IFERROR(VLOOKUP(E53,PROBABILIDAD_DAÑO!$D$38:$F$41,2,FALSE),\"-----\")","v":"> Probabilidad de daños leves.\n"},{"$f":"IFERROR(VLOOKUP(E53,PROBABILIDAD_DAÑO!$D$38:$F$41,3,FALSE),\"-----\")","v":"> Se recomienda observar las recomendaciones de la normativa NSE-2-18 de AGIES, relacionadas a la amenaza; especificadas en el capítulo 5 (acciones del viento)."}]
[null,"Huracanes",null,null,{"$f":"IFERROR(VLOOKUP(HURACANES!B19,'tablas exposicion'!$C$101:$G$104,MATCH(HURACANES!B32,'tablas exposicion'!$D$100:$G$100,0)+1,0),\"NO IDENTIFICADA\")","v":"NO IDENTIFICADA"},{"$f":"IFERROR(VLOOKUP(E54,PROBABILIDAD_DAÑO!$D$46:$F$49,2,FALSE),\"-----\")","v":"-----"},{"$f":"IFERROR(VLOOKUP(E54,PROBABILIDAD_DAÑO!$D$46:$F$49,3,FALSE),\"-----\")","v":"-----"}]
["HIDROMETEOROLÓGICAS","Inundaciones",null,null,{"$f":"IFERROR(VLOOKUP(INUNDACION!B17,'tablas exposicion'!$C$41:$G$44,MATCH(INUNDACION!B29,'tablas exposicion'!$D$40:$G$40,0)+1,0),\"NO IDENTIFICADA\")","v":"NO IDENTIFICADA"},{"$f":"IFERROR(VLOOKUP(E55,PROBABILIDAD_DAÑO!$D$22:$F$25,2,FALSE),\"-----\")","v":"-----"},{"$f":"IFERROR(VLOOKUP(E55,PROBABILIDAD_DAÑO!$D$22:$F$25,3,FALSE),\"-----\")","v":"-----"}]
["OTRAS AMENAZAS IDENTIFICADAS",{"$f":"'OTRAS#1'!C1","v":" "},null,null,{"$f":"IFERROR(VLOOKUP('OTRAS#1'!B18,'tablas exposicion'!$C$153:$G$156,MATCH('OTRAS#1'!B31,'tablas exposicion'!$D$152:$G$152,0)+1,0),\"NO IDENTIFICADA\")","v":"NO IDENTIFICADA"},{"$f":"IFERROR(VLOOKUP(E56,PROBABILIDAD_DAÑO!$D$55:$F$58,2,FALSE),\"-----\")","v":"-----"},{"$f":"IFERROR(VLOOKUP(E56,PROBABILIDAD_DAÑO!$D$55:$F$58,3,FALSE),\"-----\")","v":"-----"}]
[null,{"$f":"'OTRAS#2'!C1","v":" "},null,null,{"$f":"IFERROR(VLOOKUP('OTRAS#2'!B18,'tablas exposicion'!$C$153:$G$156,MATCH('OTRAS#2'!B31,'tablas exposicion'!$D$152:$G$152,0)+1,0),\"NO IDENTIFICADA\")","v":"NO IDENTIFICADA"},{"$f":"IFERROR(VLOOKUP(E57,PROBABILIDAD_DAÑO!$D$55:$F$58,2,FALSE),\"-----\")","v":"-----"},{"$f":"IFERROR(VLOOKUP(E57,PROBABILIDAD_DAÑO!$D$55:$F$58,3,FALSE),\"-----\")","v":"-----"}]
[null,{"$f":"'OTRAS#3'!C1","v":" "},null,null,{"$f":"IFERROR(VLOOKUP('OTRAS#3'!B18,'tablas exposicion'!$C$153:$G$156,MATCH('OTRAS#3'!B31,'tablas exposicion'!$D$152:$G$152,0)+1,0),\"NO IDENTIFICADA\")","v":"NO IDENTIFICADA"},{"$f":"IFERROR(VLOOKUP(E58,PROBABILIDAD_DAÑO!$D$55:$F$58,2,FALSE),\"-----\")","v":"-----"},{"$f":"IFERROR(VLOOKUP(E58,PROBABILIDAD_DAÑO!$D$55:$F$58,3,FALSE),\"-----\")","v":"-----"}]
["Amenaza ","Cambio Climático",null,null,{"$f":"IFERROR(VLOOKUP(CLIMATICO!B17,'tablas exposicion'!$C$153:$G$156,MATCH(CLIMATICO!B29,'tablas exposicion'!$D$152:$G$152,0)+1,0),\"NO IDENTIFICADA\")","v":"NO IDENTIFICADA"},{"$f":"IFERROR(VLOOKUP(E59,PROBABILIDAD_DAÑO!$D$55:$F$58,2,FALSE),\"-----\")","v":"-----"},{"$f":"IFERROR(VLOOKUP(E59,PROBABILIDAD_DAÑO!$D$55:$F$58,3,FALSE),\"-----\")","v":"-----"}]

{"sheet":"DATOS#1","index":18,"n_rows":23,"n_cols":4,"rows_kept":23,"cut":false,"hidden":true,"merged":[]}
["REGION","DEPARTAMENTO",null,"REGION"]
["I","Guatemala",null,"I"]
["II","Baja Verapaz",null,"II"]
["II","Alta Verapaz",null,"III"]
["III","El Progreso",null,"IV"]
["III","Izabal",null,"V"]
["III","Zacapa",null,"VI"]
["III","Chiquimula",null,"VII"]
["IV","Santa Rosa",null,"VIII"]
["IV","Jalapa"]
["IV","Jutiapa"]
["V","Sacatepéquez"]
["V","Chimaltenango"]
["V","Escuintla"]
["VI","Sololá"]
["VI","Totonicapán"]
["VI","Quetzaltenango"]
["VI","Suchitepéquez"]
["VI","Retalhuleu"]
["VI","San Marcos"]
["VII","Huehuetenango"]
["VII","Quiché"]
["VIII","Petén"]

{"sheet":"TABLA_INDICE_SISMICIDAD_EJEMPLO","index":19,"n_rows":341,"n_cols":3,"rows_kept":341,"cut":false,"hidden":true,"merged":[]}
["MUNICIPIO","INDICE SISMICIDAD","VELOCIDAD VIENTO"]
["CHAHAL",3,110]
["CHISEC",3,100]
["COBÁN",4.0999999999999996,100]
["FRAY_BARTOLOMÉ_DE_LAS_CASAS",3,110]
["LANQUÍN",3,100]
["PANZÓS",4.0999999999999996,100]
["RAXRUHÁ",3,100]
["SAN_CRISTÓBAL_VERAPAZ",4.0999999999999996,100]
["SAN_JUAN_CHAMELCO",4.0999999999999996,100]
["SAN_PEDRO_CARCHÁ",4.0999999999999996,100]
["SANTA_CATALINA_LA_TINTA",4.0999999999999996,100]
["SANTA_CRUZ_VERAPAZ",4.0999999999999996,100]
["SANTA_MARÍA_CAHABÓN",3,110]
["SENAHÚ",4.0999999999999996,100]
["TACTIC",4.0999999999999996,100]
["TAMAHÚ",4.0999999999999996,100]
["TUCURÚ",4.0999999999999996,100]
["CUBULCO",4.0999999999999996,100]
["GRANADOS",4.0999999999999996,100]
["PURULHÁ",4.0999999999999996,100]
["RABINAL",4.0999999999999996,100]
["SALAMÁ",4.0999999999999996,100]
["SAN_JERÓNIMO",4.0999999999999996,100]
["SAN_MIGUEL_CHICAJ",4.0999999999999996,100]
["SANTA_CRUZ_EL_CHOL",4.0999999999999996,100]
["ACATENANGO",4.0999999999999996,100]
["CHIMALTENANGO",4.0999999999999996,100]
["EL_TEJAR",4.0999999999999996,100]
["PARRAMOS",4.0999999999999996,100]
["PATZICÍA",4.0999999999999996,100]
["PATZÚN",4.0999999999999996,100]
["POCHUTA",4.0999999999999996,100]
["SAN_ANDRÉS_CHIMALTENANGO",4.0999999999999996,100]
["SAN_JOSÉ_POAQUIL",4.0999999999999996,100]
["SAN_JUAN_COMALAPA",4.0999999999999996,100]
["SAN_MARTÍN_JILOTEPEQUE",4.0999999999999996,100]
["SANTA_APOLONIA",4.0999999999999996,100]
["SANTA_CRUZ_BALANYÁ",4.0999999999999996,100]
["TECPÁN_GUATEMALA",4.0999999999999996,100]
["YEPOCAPA",4.0999999999999996,100]
["ZARAGOZA",4.0999999999999996,100]
["CAMOTAN",4.0999999999999996,100]
["CHIQUIMULA",4.0999999999999996,100]
["CONCEPCIÓN_LAS_MINAS",4.0999999999999996,100]
["ESQUIPULAS",4.0999999999999996,100]
["IPALA",4.0999999999999996,100]
["JOCOTÁN",4.0999999999999996,100]
["OLOPA",4.0999999999999996,100]
["QUETZALTEPEQUE",4.0999999999999996,100]
["SAN_JACINTO",4.0999999999999996,100]
["SAN_JOSÉ_LA_ARADA",4.0999999999999996,100]
["SAN_JUAN_ERMITA",4.0999999999999996,100]
["EL_JÍCARO",4.0999999999999996,100]
["GUASTATOYA",4.0999999999999996,100]
["MORAZÁN",4.0999999999999996,100]
["SAN_AGUSTÍN_ACASAGUASTLÁN",4.0999999999999996,100]
["SAN_ANTONIO_LA_PAZ",4.0999999999999996,100]
["SAN_CRISTÓBAL_ACASAGUASTLÁN",4.0999999999999996,100]
["SANARATE",4.0999999999999996,100]
["SANSARE",4.0999999999999996,100]
["ESCUINTLA",4.2,100]
["GUANAGAZAPA",4.2,110]
["IZTAPA",4.2,110]
["LA_DEMOCRACIA",4.2,110]
["LA_GOMERA",4.2,110]
["MASAGUA",4.2,110]
["NUEVA_CONCEPCIÓN",4.2,110]
["PALÍN",4.2,100]
["SAN_JOSÉ.",4.2,110]
["SAN_VICENTE_PACAYA",4.2,100]
["SANTA_LUCÍA_COTZUMALGUAPA",4.2,100]
["SIPACATE",4.2,110]
["SIQUINALÁ",4.2,100]
["TIQUISATE",4.2,110]
["AMATITLAN",4.0999999999999996,100]
["CHINAUTLA",4.0999999999999996,100]
["CHUARRANCHO",4.0999999999999996,100]
["FRAIJANES",4.0999999999999996,100]
["GUATEMALA",4.0999999999999996,100]
["MIXCO",4.0999999999999996,100]
["PALENCIA",4.0999999999999996,100]
["SAN_JOSÉ_DEL_GOLFO",4.0999999999999996,100]
["SAN_JOSÉ_PINULA",4.0999999999999996,100]
["SAN_JUAN_SACATEPÉQUEZ",4.0999999999999996,100]
["SAN_MIGUEL_PETAPA",4.0999999999999996,100]
["SAN_PEDRO_AYAMPUC",4.0999999999999996,100]
["SAN_PEDRO_SACATEPÉQUEZ",4.0999999999999996,100]
["SAN_RAYMUNDO",4.0999999999999996,100]
["SANTA_CATARINA_PINULA",4.0999999999999996,100]
["VILLA_CANALES",4.0999999999999996,100]
["VILLA_NUEVA",4.0999999999999996,100]
["AGUACATAN",4.0999999999999996,100]
["CHIANTLA",4.0999999999999996,100]
["COLOTENANGO",4.0999999999999996,100]
["CONCEPCIÓN_HUISTA",4.0999999999999996,100]
["CUILCO",4.0999999999999996,100]
["HUEHUETENANGO",4.0999999999999996,100]
["JACALTENANGO",4.0999999999999996,100]
["LA_DEMOCRACIA",4.0999999999999996,100]
["LA_LIBERTAD.",4.0999999999999996,100]
["MALACATANCITO",4.0999999999999996,100]
["NENTÓN",4.0999999999999996,100]
["PETATÁN",4.0999999999999996,100]
["SAN_ANTONIO_HUISTA",4.0999999999999996,100]
["SAN_GASPAR_IXCHIL",4.0999999999999996,100]
["SAN_ILDEFONSO_IXTAHUACÁN",4.0999999999999996,100]
["SAN_JUAN_ATITÁN",4.0999999999999996,100]
["SAN_JUAN_IXCOY",4.0999999999999996,100]
["SAN_MATEO_IXTATÁN.",3,100]
["SAN_MIGUEL_ACATÁN",4.0999999999999996,100]
["SAN_PEDRO_NECTA",4.0999999999999996,100]
["SAN_PEDRO_SOLOMA",3,100]
["SAN_RAFAEL_LA_INDEPENDENCIA",4.0999999999999996,100]
["SAN_RAFAEL_PETZAL",4.0999999999999996,100]
["SAN_SEBASTIÁN_COATÁN",4.0999999999999996,100]
["SAN_SEBASTIÁN_HUEHUETENANGO",4.0999999999999996,100]
["SANTA_ANA_HUISTA",4.0999999999999996,100]
["SANTA_BÁRBARA",4.0999999999999996,100]
["SANTA_CRUZ_BARILLAS",3,100]
["SANTA_EULALIA",3,100]
["SANTIAGO_CHIMALTENANGO",4.0999999999999996,100]
["TECTITÁN",4.0999999999999996,100]
["TODOS_SANTOS_CUCHUMATANES",4.0999999999999996,100]
["UNIÓN_CANTINIL",4.0999999999999996,100]
["EL_ESTOR",4.0999999999999996,110]
["LIVINGSTON",4.0999999999999996,120]
["LOS_AMATES",4.0999999999999996,110]
["MORALES",4.0999999999999996,110]
["PUERTO_BARRIOS",4.0999999999999996,120]
["JALAPA",4.0999999999999996,100]
["MATAQUESCUINTLA",4.0999999999999996,100]
["MONJAS",4.0999999999999996,100]
["SAN_CARLOS_ALZATATE",4.0999999999999996,100]
["SAN_LUIS_JILOTEPEQUE",4.0999999999999996,100]
["SAN_MANUEL_CHAPARRÓN",4.0999999999999996,100]
["SAN_PEDRO_PINULA",4.0999999999999996,100]
["AGUA BLANCA",4.0999999999999996,100]
["ASUNCION MITA",4.0999999999999996,100]
["ATESCATEMPA",4.0999999999999996,100]
["COMAPA",4.0999999999999996,100]
["CONGUACO",4.2,100]
["EL_ADELANTO",4.0999999999999996,100]
["EL_PROGRESO",4.0999999999999996,100]
["JALPATAGUA",4.0999999999999996,100]
["JEREZ",4.0999999999999996,100]
["JUTIAPA",4.0999999999999996,100]
["MOYUTA",4.2,110]
["PASACO",4.2,110]
["QUESADA",4.0999999999999996,100]
["SAN_JOSÉ_ACATEMPA",4.0999999999999996,100]
["SANTA_CATARINA_MITA",4.0999999999999996,100]
["YUPILTEPEQUE",4.0999999999999996,100]
["ZAPOTITLÁN",4.0999999999999996,100]
["DOLORES",2,110]
["EL_CHAL",2,100]
["FLORES",2,100]
["LA_LIBERTAD",2,100]
["LAS_CRUCES",2,100]
["MELCHOR_DE_MENCOS",2,110]
["POPTÚN",2,110]
["SAN_ANDRÉS_PETÉN",2,100]
["SAN_BENITO",2,100]
["SAN_FRANCISCO",3,100]
["SAN_JOSÉ",2,100]
["SAN_LUIS",3,110]
["SANTA_ANA",2,100]
["SAYAXCHÉ",2,100]
["ALMOLONGA",4.0999999999999996,100]
["CABRICAN",4.0999999999999996,100]
["CAJOLA",4.0999999999999996,100]
["CANTEL",4.0999999999999996,100]
["COATEPEQUE",4.2,110]
["COLOMBA",4.2,100]
["CONCEPCIÓN_CHIQUIRICHAPA",4.0999999999999996,100]
["EL_PALMAR",4.2,100]
["FLORES_COSTA_CUCA",4.2,110]
["GÉNOVA",4.2,110]
["HUITÁN",4.0999999999999996,100]
["LA_ESPERANZA",4.0999999999999996,100]
["OLINTEPEQUE",4.0999999999999996,100]
["PALESTINA_DE_LOS_ALTOS",4.0999999999999996,100]
["QUETZALTENANGO",4.0999999999999996,100]
["SALCAJÁ",4.0999999999999996,100]
["SAN_CARLOS_SIJA",4.0999999999999996,100]
["SAN_FRANCISCO_LA_UNIÓN",4.0999999999999996,100]
["SAN_JUAN_OSTUNCALCO",4.0999999999999996,100]
["SAN_MARTÍN_SACATEPÉQUEZ",4.0999999999999996,100]
["SAN_MATEO",4.0999999999999996,100]
["SAN_MIGUEL_SIGÜILÁ",4.0999999999999996,100]
["SIBILIA",4.0999999999999996,100]
["ZUNIL",4.0999999999999996,100]
["CANILLA",4.0999999999999996,100]
["CHAJUL",4.0999999999999996,100]
["CHICAMÁN",4.0999999999999996,100]
["CHICHÉ",4.0999999999999996,100]
["CHICHICASTENANGO",4.0999999999999996,100]
["CHINIQUE",4.0999999999999996,100]
["CUNÉN",4.0999999999999996,100]
["IXCÁN",4.0999999999999996,100]
["JOYABAJ",4.0999999999999996,100]
["NEBAJ",4.0999999999999996,100]
["PACHALUM",4.0999999999999996,100]
["PATZITÉ",4.0999999999999996,100]
["SACAPULAS",4.0999999999999996,100]
["SAN_ANDRÉS_SAJCABAJÁ",4.0999999999999996,100]
["SAN_ANTONIO_ILOTENANGO",4.0999999999999996,100]
["SAN_BARTOLOMÉ_JOCOTENANGO",4.0999999999999996,100]
["SAN_JUAN_COTZAL",4.0999999999999996,100]
["SAN_PEDRO_JOCOPILAS",4.0999999999999996,100]
["SANTA_CRUZ_DEL_QUICHÉ",4.0999999999999996,100]
["USPANTÁN",4.0999999999999996,100]
["ZACUALPA",4.0999999999999996,100]
["CHAMPERICO",4.2,110]
["EL_ASINTAL",4.2,110]
["NUEVO_SAN_CARLOS",4.2,100]
["RETALHULEU",4.2,110]
["SAN_ANDRÉS_VILLA_SECA",4.2,110]
["SAN_FELIPE",4.2,100]
["SAN_MARTÍN_ZAPOTITLÁN",4.2,100]
["SAN_SEBASTIÁN",4.2,100]
["SANTA_CRUZ_MULUÁ",4.2,110]
["ALOTENANGO",4.0999999999999996,100]
["ANTIGUA GUATEMALA",4.0999999999999996,100]
["CIUDAD_VIEJA",4.0999999999999996,100]
["JOCOTENANGO",4.0999999999999996,100]
["MAGDALENA_MILPAS_ALTAS",4.0999999999999996,100]
["PASTORES",4.0999999999999996,100]
["SAN_ANTONIO_AGUAS_CALIENTES",4.0999999999999996,100]
["SAN_BARTOLOMÉ_MILPAS_ALTAS",4.0999999999999996,100]
["SAN_LUCAS_SACATEPÉQUEZ",4.0999999999999996,100]
["SAN_MIGUEL_DUEÑAS",4.0999999999999996,100]
["SANTA_CATARINA_BARAHONA",4.0999999999999996,100]
["SANTA_LUCÍA_MILPAS_ALTAS",4.0999999999999996,100]
["SANTA_MARÍA_DE_JESÚS",4.0999999999999996,100]
["SANTIAGO_SACATEPÉQUEZ",4.0999999999999996,100]
["SANTO_DOMINGO_XENACOJ",4.0999999999999996,100]
["SUMPANGO",4.0999999999999996,100]
["AYUTLA",4.2,110]
["CATARINA",4.2,100]
["COMITANCILLO",4.0999999999999996,100]
["CONCEPCIÓN_TUTUAPA",4.0999999999999996,100]
["EL_QUETZAL",4.2,100]
["EL_RODEO",4.2,100]
["EL_TUMBADOR",4.2,100]
["ESQUIPULAS_PALO_GORDO",4.2,100]
["IXCHIGUAN",4.0999999999999996,100]
["LA_BLANCA",4.2,110]
["LA_REFORMA",4.2,100]
["MALACATÁN",4.2,100]
["NUEVO_PROGRESO",4.2,100]
["OCÓS",4.2,110]
["PAJAPITA",4.0999999999999996,110]
["RÍO_BLANCO",4.0999999999999996,100]
["SAN_ANTONIO_SACATEPÉQUEZ",4.0999999999999996,100]
["SAN_CRISTÓBAL_CUCHO",4.0999999999999996,100]
["SAN_JOSÉ_OJETENAM",4.0999999999999996,100]
["SAN_LORENZO",4.0999999999999996,100]
["SAN_MARCOS",4.0999999999999996,100]
["SAN_MIGUEL_IXTAHUACÁN",4.0999999999999996,100]
["SAN_PABLO",4.0999999999999996,100]
["SAN_PEDRO_SACATEPÉQUEZ",4.2,100]
["SAN_RAFAEL_PIE_DE_LA_CUESTA",4.0999999999999996,100]
["SIBINAL",4.0999999999999996,100]
["SIPACAPA",4.0999999999999996,100]
["TACANÁ",4.0999999999999996,100]
["TAJUMULCO",4.0999999999999996,100]
["TEJUTLA",4.2,100]
["BARBERENA",4.0999999999999996,100]
["CASILLAS",4.0999999999999996,100]
["CHIQUIMULILLA",4.2,110]
["CUILAPA",4.0999999999999996,100]
["GUAZACAPÁN",4.2,110]
["NUEVA_SANTA_ROSA",4.0999999999999996,100]
["ORATORIO",4.2,100]
["PUEBLO_NUEVO_VIÑAS",4.2,100]
["SAN_JUAN_TECUACO",4.2,100]
["SAN_RAFAEL_LAS_FLORES",4.0999999999999996,100]
["SANTA_CRUZ_NARANJO",4.0999999999999996,100]
["SANTA_MARÍA_IXHUATÁN",4.2,100]
["SANTA_ROSA_DE_LIMA",4.0999999999999996,100]
["TAXISCO",4.2,110]
["CONCEPCIÓN",4.0999999999999996,100]
["NAHUALÁ",4.0999999999999996,100]
["PANAJACHEL",4.0999999999999996,100]
["SAN_ANDRÉS_SEMETABAJ",4.0999999999999996,100]
["SAN_ANTONIO_PALOPÓ",4.0999999999999996,100]
["SAN_JOSÉ_CHACAYÁ",4.0999999999999996,100]
["SAN_JUAN_LA_LAGUNA",4.0999999999999996,100]
["SAN_LUCAS_TOLIMÁN",4.0999999999999996,100]
["SAN_MARCOS_LA_LAGUNA",4.0999999999999996,100]
["SAN_PABLO_LA_LAGUNA",4.0999999999999996,100]
["SAN_PEDRO_LA_LAGUNA",4.0999999999999996,100]
["SANTA_CATARINA_IXTAHUACÁN",4.0999999999999996,100]
["SANTA_CATARINA_PALOPÓ",4.0999999999999996,100]
["SANTA_CLARA_LA_LAGUNA",4.0999999999999996,100]
["SANTA_CRUZ_LA_LAGUNA",4.0999999999999996,100]
["SANTA_LUCÍA_UTATLÁN",4.0999999999999996,100]
["SANTA_MARÍA_VISITACIÓN",4.0999999999999996,100]
["SANTIAGO_ATITLÁN",4.0999999999999996,100]
["SOLOLÁ",4.0999999999999996,100]
["CHICACAO",4.2,100]
["CUYOTENANGO",4.2,110]
["MAZATENANGO",4.2,100]
["PATULUL",4.2,100]
["PUEBLO_NUEVO",4.2,100]
["RÍO_BRAVO",4.2,100]
["SAMAYAC",4.2,100]
["SAN_ANTONIO_SUCHITEPÉQUEZ",4.2,100]
["SAN_BERNARDINO",4.2,100]
["SAN_FRANCISCO_ZAPOTITLÁN",4.2,100]
["SAN_GABRIEL",4.2,100]
["SAN_JOSÉ_EL_ÍDOLO",4.2,100]
["SAN_JOSÉ_LA_MÁQUINA",4.2,110]
["SAN_JUAN_BAUTISTA",4.2,100]
["SAN_LORENZO",4.2,110]
["SAN_MIGUEL_PANÁN",4.2,100]
["SAN_PABLO_JOCOPILAS",4.2,100]
["SANTA_BÁRBARA",4.2,100]
["SANTO_DOMINGO_SUCHITEPÉQUEZ",4.2,110]
["SANTO_TOMÁS_LA_UNIÓN",4.2,100]
["ZUNILITO",4.2,100]
["MOMOSTENANGO",4.0999999999999996,100]
["SAN_ANDRÉS_XECUL",4.0999999999999996,100]
["SAN_BARTOLO",4.0999999999999996,100]
["SAN_CRISTÓBAL_TOTONICAPÁN",4.0999999999999996,100]
["SAN_FRANCISCO_EL_ALTO",4.0999999999999996,100]
["SANTA_LUCÍA_LA_REFORMA",4.0999999999999996,100]
["SANTA_MARÍA_CHIQUIMULA",4.0999999999999996,100]
["TOTONICAPÁN",4.0999999999999996,100]
["CABAÑAS",4.0999999999999996,100]
["ESTANZUELA",4.0999999999999996,100]
["GUALÁN",4.0999999999999996,100]
["HUITÉ",4.0999999999999996,100]
["LA_UNIÓN",4.0999999999999996,100]
["RÍO_HONDO",4.0999999999999996,100]
["SAN_DIEGO",4.0999999999999996,100]
["SAN_JORGE_ZACAPA",4.0999999999999996,100]
["TECULUTÁN",4.0999999999999996,100]
["USUMATLÁN",4.0999999999999996,100]
["ZACAPA",4.0999999999999996,100]